Workbook

Sheet Planting GUIDELINES NRCS
A1: Conservation Purpose:
A2: This practice may be applied on lands requiring permanent protective cover that are adjacent to or within 1500 feet of an agricultural field,
A3: or are being converted from agricultural production. Examples of locations include fields or wet margins, roadsides, areas within or
A4: adjacent to fruit and vegetable production, steep slopes, open upland habitat, reclaimed sand pits, forest edges, right-of-ways etc…
A5: Although larger areas of habitat (1/2 Acre or more) will provide more resources to support pollinator populations, flower rich habitat can
A6: be created in small patches or strips (20 feet wide or more).
A7: Conservation Cover Seeding Information:
A8: a.) All seed shall be certified or common seed from a commercial supplier and be fully tagged with a test date of no more than 9 months
A9: old. Wildflower seed prices and PLS information will vary from year to year. It is very important to contact your seed supplier to obtain
A10: PLS information before costs are finalized. Most seed companies list their prices in bulk pounds per acre. Recommendations are in
A11: PLS and seed companies, when asked, will give prices on a PLS basis.
A13: b.) Selected seed mixtures that will be tolerant of soil drainage site conditions.
A14: Pollinator Habitat Planting Considerations
A15: a.) Native wildflowers shall be planted to promote diversity of flowering plants over the entire growing season and provide habitat for
A16: pollinators. Special care should be taken to establish plantings that do not compete with the bloom time of adjacent crops. Seed
A17: mixes shall contain a minimum of 9 species of pollinator-friendly plants with at least 3 species blooming in the following months:
A18: early (April-June 15), mid (June 15-July 31), and late (August-October). A more diverse mix is encouraged.
A20: b.) Non-competitive native bunch grasses can be added to the mix for pollinator habitat enhancement, other conservation benefits, or
A21: erosion control. The final combined seeding rate for the native flower component will not be less that 25 pure live seeds per square
A22: foot. If grasses are used, grass species should be at least 25% of the total mix, on a PLS per square foot basis.
A24: c.) Non-native flowering plants beneficial to pollinators, may be included in the mix. No more that 20% of the total mix will consistute
A25: non-native species. No individual non-native species may not exceed 10% of the total mix. (PLS)
A27: d.) When identifying planting sites, please keep in mind the following:
A28: 1. Habitat patches that are larger, closer, or interconnected will support abundantly more populations of pollinators than small, isolated
A29: ones. Minimum size field requirements for the Conservation Reserve Program (CRP) is .5 acres. If planted in strips, the
A30: minimum strip width is 20 feet.
A31: 2. Avoid areas with anticipated pesticide drift.
A32: 3. Avoid areas that are fully shaded.
A33: 4. Take existing areas of high quality pollinator habitat into account when planting pollinator-friendly plants and aim to fill 'holes'
A34: in the flowering phenology.
A35: e.) A rule of thumb is try to enhance 1 Acre of pollinator habitat for every 25 Acres of cropland
A36: f.) Keep warm season grasses in separte strips from herbaceaous places, if applicable, due to different management regimes during
A37: establishment.
A38: g.) Know the species you are planting. Some species may harm adjacent crops by promoting unwanted insects and diseases.
A39: Competition Control Before Planting
A40: a.) Site preparation is one of the most important and often inadequately addressed components of establishing successful pollinator
A41: habitat plantings. This process may require over a year of efforts to reduce competition from unwanted species, invasives, or noxious
A42: plants prior to planting. See Appendix A, on the New York Conservation Cover Job Sheet for detailed guidance.
A43: b.) In particular, site preparation should focus on the abatement of perennial weeds, by the following means:
A44: 1. if possible follow annual cropping systems which have a history of excellent weed control.
A45: 2. If the field was left in weeds following cropping or has been in low maintenance hayland, pasture, or idle, it is recommended to
A46: use methods to reduce the soil weed seed bank with light cultivation, smother crops, and/or herbicides
A47: 3. If using herbicides for weed control, spray at dusk when bees are less active.
A48: 4. All chemical and biological pest suppression recommendations must be made by a qualified Extension Specialist or consultant.
A49: Pesticide applications will be made by a Certified NYS Pesticide Applicator when required. All pesticide applications shall be in
A50: accordance with the product label as required by law.
A51: 5. Additional care needs to be taken, that any chemical used will not affect subsequent cover crop or wildflower establishment.
A55: Seedbed Preparation
A56: a.) A firm and well prepared seedbed is important when seeding grasses, wildflowers, and legumes. Please see the following:
A57: 1. Avoid seedbed prepation when the soil moisture content is too high. This will help allevaite potential compaction issues.
A58: 2. Initial tillage should begin at least a month or more prior to seeding. Up to year may be needed in some areas.
A59: 3. After intial tillage, wait at least 2 weeks before the final seedbed preparation. This will allow for any weeds to germiante and be
A60: killed through herbicide application or light cultivation.
A61: 4. The seedbed shall be scarified and roughened to ensure adequate seed to soil contact.
A62: 5. The final seedbed should be cultipacked until firm enough to leave footprints only 1/4 to 1/2 inches deep.
A63: 6. No-till drills, with native seed hoppers, can be used. It is typically used in combination with some tillage for weed control. If
A64: following a low residue crop, no-till seeding can be effective and recommended.
A65: Seeding Dates
A66: Spring Seeding (prior to June 1):
A67: ~Annual weeds may be a problem, and may require mowing up to 2x during establishment year.
A68: Late Summer (August 5-15)
A69: ~When days are shortening and there is soil moisture present from morning dew
A70: ~This time frame is when late summer forage legumes are typically planted
A71: ~These date are extremely weather and soil moisture dependant and should not exceed August 15
A72: ~Use these dates on soils that are not prone to heavy frost heaving
A73: Dormant seeding (after October 20)
A74: ~This time frame is recommended by the Xerces Society
A75: ~At these dates, wet conditions may prevail and make it very difficult to break up the surface of the soil with tillage, mechanical
A76: seeders, and cultipacking
A77: ~A no-till planter could be an option if the field is prepared in late September and seeding is conducted in the fall when soils are drier.
A78: ~Mechanical planting must be performed before the onset of snowfall.
A79: Seeding Methods
A80: Broadcast seeding (hand or hand-held seed spreaders)
A81: ~for small areas
A82: Drop seeder or ATV mounted broadcast seeder
A83: ~large areas
A84: Native plant seed drills
A85: ~Tye or Truax drills
A86: Seeding Considerations
A87: a.) When broadcast seeding, it is easier to divide larger seedlots into smaller increments. Depending on how much seed is needed
A88: the larger the area, the more divisions are needed.
A89: b.) A filler agent is recommended when seeding wildflowers, especially with very small seed. Fine play sand, fine grained vermiculite
A90: pelleted lime, clay kitty litter, or other free flowing material inter material can be mixed into seed mixes. This will help with evenly
A91: spreading the seed throughout the area.
A92: c.) When seeding with a seeder, seeds of similar sizes should be placed together in the appropiate hopper for better distribution, Most
A93: wildflower species, depth controls should be set at 1/4 inch deep, and stopping to check periodically to check depth is a good idea.
A94: d.) Cultipack after any seeding method, for good seed to soil contact.
A95: Special Requirements
A96: Site Disturbance
A97: -minimize site disturbance in these areas, for creating nesting opportunities for bumble bees and other ground nesting species.
A98: Providing open areas can be obtained by mowing or burning, infrequently. Proper timing of these operation and maintence is critical
A99: to ensure the species are not harmed. Only provide disturbance on 1/3 of the habitat per year, especially at a time that would not
A100: disturb ground nesting bird species.
A101: Weed Control
A102: -Monitoring and controlling weeds in the first few years are critical for establishing wildflower habitat for pollinators. The better the site
A103: is prepared in the beginning, the higher the success of the overall planting, coupled with a management regime.
A104: Maintaince Practices
A105: -These practices must be adequte to control noxious and invasive plants and may involve mowing, burning, hand weeding, or spot
A106: spraying. If burning, a burn plan must be in place with the oversight of a burn boss and must follow all applicable federal, state, and
A107: local permits and regulations.
A108: - Actual management will depend on the size and location of the habitat
A109: -FOR ADDITIONAL MAINTAINCE OPTIONS, please see your state's conservation practice job sheet for more information.

Sheet Instructions
A1: Instructions to Use Calculator for Planting Beneficial Plants for Pollinator Habitat
A2: (enable marcos, first on calculator sheet)
A3: 1. Use the Filter Species Drop Down Boxes to Select Desired Characteristics, if needed.
A4: Species highlighted in yellow, on the calculator worksheet are being tested at the USDA NRCS Big Flats Plant Materials Center, in New York
A5: The species list will populate to the right of the calculator. All characteristics will show up.
A6: State column, is indicative of the NRCS Job Sheet that has been compiled by the States listed, and is NOT where species are found. ALL species are found in the NE US.
A8: 3. Select desired species in first column of the calculator. A Drop Down Box will appear when cell is selected.
A9: Choose a minimum of 3 early- (April to June 15), 3 mid- ( June 15-July 31) and 3 late-season flowering (August to October) species.
A10: More species chosen, the better diversity in the mix. Keep in mind the cost of each species as well as the final cost.
A12: 4. Enter in your seeding rate for each species- lbs/A OR desired seeds/sq ft. These values are expressed as Pure Live Seed or PLS.
A14: 5. If you know the lot of seed you are working with, Enter the Purity (%), Germination (%), and Dormant (%) and/or Hard Seed (%), for each
A15: species . The Calculator has a DEFAULT PLS of 50% (can change this if you want), and is filled in for you . It will update once you fill in the information from your seed tag.
A16: Each species PLS will vary, and may change if old seed is used. New lots of seed are strongly recommended.
A17: A germination test should have been completed within 9 months of the purchase date.
A19: 6. Adjust your seeding rates as necessary to obtain at least 25 seeds per square foot (PLS) for the entire mix. A site with high weed
A20: pressure may require a seeding rate of at least 40 seeds per square foot.
A22: 7. Selecting a grass species is optional, and may be no more that 25% of the total mix.
A23: Non-competitive native warm-season bunch grasses or native wildryes can be used in the mix. There is a spot on the calculator for these selections.
A25: 8. Non-native flowering plants beneficial to pollinators may be included in the mix. No more than 20% of the total mix will consist of non-native plants
A26: Individual non-native species will not exceed 10% of the total mix, on a PLS per square foot basis.
A28: 9. A final seeding plan, can be viewed and printed on the seeding plan worksheet. This will provide a summary of all species used
A29: and a cost for the entire mix.
A31: 10. Use the clear buttons, at the top of the calculator, when completed.
A33: 11. Any Species, of your choice, can be added to the calculator OR on the Forbs_Legumes Worksheet. Just remember that seeds per pound and cost need to
A34: added, in order for the calculator to work. On the Forbs_Legumes worksheet, there are species that have no information filled in, this is will be filled in soon.
A36: 12. IF by mistake, you add something you didn't want, you can overwrite in that cell, or clear it out. When finished, and would like to start another mix , Just Reset the Sheet..
A37: DO NOT Enter anything in the cells that are calculating lbs/A or percentages of the mix. You will have to Reset the sheet to get formulas back.
A39: **NOTE** Cost, availability, and PLS will vary from year to year, and sometimes monthly. All costs provided in this calculator were from a variety of sources.
A40: Call ahead to your local seed provider.

Sheet calculator
A1: Seeding Rate Calculator For Conservation Plantings | M1: *Please check comments for more information* | Y1: Flower Time | Z1: soil moisture | AA1: pollinator ranking | AB1: State
A2: Enter desired PLS rate (either lb/A or seeds/sq ft) and seed tag info (if applicable) in shaded areas | Y2: =IF($A$5="","",$A$5) ->  | Z2: =IF($C$5="","",$C$5) ->  | AA2: =IF(calculator!$D$5="","",calculator!$D$5) ->  | AB2: =IF(calculator!$E$5="","",calculator!$E$5) -> 
A3: Select Filter Species Criteria (if any) | I3: CLICK HERE FOR MORE DETAILED PLS INFORMATION | Y3: Common name | Z3: scientific name | AA3: plant Type | AB3: pollinator ranking | AC3: Flower Time | AD3: bloom color | AE3: plant ht (ft) | AF3: soil moisture | AG3: sunlight needs | AH3: ph | AI3: Vegetative spread | AJ3: seeds/ lb* | AK3: Cost (lb) ($) | AL3: drainage | AM3: other | AN3: wetland indicator | AO3: State
A4: Flower Time | C4: soil moisture | D4: pollinator ranking | E4: State | I4: When seed is order on a PLS basis, Change the price column | S4: The bulk info columns are handy when | Y4: black bugbane | Z4: Actaea racemosa | AA4: P | AB4: high | AC4: early, mid | AD4: white | AE4: 3-6 | AF4: medium, wet | AG4: sun-part | AI4: slow | AJ4: 500000 | AK4: 300 | AM4: blooms earlier than the others | AN4: FACW | AO4: any,
I5: Accordinly. No need to look at Bulk info. | S5: PLANNING your mix. It is based on 50% PLS. | Y5: purple false foxglove | Z5: Agalinis purpurea | AA5: A | AB5: high | AC5: early, mid, late | AD5: purple | AE5: 1-2 | AF5: medium, wet | AG5: sun-part | AJ5: 12480000 | AK5: 500 | AL5: WD,MWDMSPD, PD | AM5: high bee preference | AN5: FACW | AO5: any,
A6: For more information on each plant, go to forbs_legumes worksheet and click on species | K6: PLS INFO | N6: seed tag information | U6: BULK INFO | Y6: lavender hysoop | Z6: Agastache foeniculum | AA6: P | AB6: high | AC6: mid, late | AD6: blue-violet | AE6: 3-5 | AF6: dry, medium | AG6: sun-part | AI6: slow | AJ6: 1440000 | AK6: 172 | AL6: WD | AM6: honey bee, bumble bee (N) | AN6: FACU | AO6: any,mn,wv
A7: Common Name | B7: Scientific Name | C7: PLS**/lb | D7: bloom time | E7: soil moisture | F7: $/ bulk lb | G7: lb PLS/A | H7: bulk lb/A | I7: % of mix/A PLS | J7: seeds/A PLS | K7: seeds/sq ft PLS | L7: % PLS of mix by # of seeds/A | M7: Estimated $ PLS species/A | N7: pure seed (%) | O7: germ (%) | P7: dormant + hard seed (%) | Q7: PLS (%) | R7: conversion factor | S7: Bulk Seed Needed (lb/A) | T7: Estimated Price/lb of bulk seed | U7: seeds/A Bulk | V7: seeds/sq ft (bulk) | Y7: yellow giant hyssop | Z7: Agastache nepetoides | AA7: P | AB7: high | AC7: late | AD7: yellow | AE7: 3-8 | AF7: dry, medium | AG7: sun-part | AJ7: 1480000 | AK7: 200 | AN7: FACU | AO7: any,mn,wv
C8: =IF(A8="","",VLOOKUP(A8,NEWALLSPECIES,12,FALSE)) ->  | D8: =IF(A8="","",VLOOKUP(A8,NEWALLSPECIES,5,FALSE)) ->  | E8: =IF(A8="","",VLOOKUP(A8,NEWALLSPECIES,8,FALSE)) ->  | F8: =IF(A8="","",VLOOKUP(A8,NEWALLSPECIES,13,FALSE)) ->  | G8: =IF(ISERROR(K8/W8),"",K8/W8) ->  | H8: =IF(ISERROR(G8/R8),"",G8/R8) ->  | I8: =IF(ISERROR(G8/$D$38),"",G8/$D$38) ->  | J8: =IF(ISERROR(G8*C8),"",C8*G8) ->  | K8: =IF(ISERROR(J8/43560),"",J8/43560) ->  | L8: =IF(ISERROR(K8/SUM($D$40)),"",K8/SUM($D$40)) ->  | M8: =IF(ISERROR(G8*F8),"",G8*F8) ->  | Q8: =IF(N8="","50",((O8+P8)*N8)/100) -> 50 | R8: =IF(Q8="","",(Q8/100)) -> 0.5 | S8: =IF(ISERROR(G8/R8),"",G8/R8) ->  | T8: =IF(ISERROR(H8*F8),"",F8*H8) ->  | U8: =IF(ISERROR(H8*C8),"",H8*C8) ->  | V8: =IF(ISERROR(U8/43560),"",U8/43560) ->  | W8: =IF(A8="","",VLOOKUP(A8,NEWALLSPECIES,23,FALSE)) ->  | Y8: purple giant hyssop | Z8: Agastache scrophulariifolia | AA8: P | AB8: very high | AC8: mid | AD8: purple | AE8: 2-6 | AF8: med, wet | AG8: full | AH8: 6.5-7.0 | AI8: n/a | AJ8: 1000000 | AK8: 80 | AL8: WD,MWD | AM8: attractive to bees and butterflies,birds, RARE | AN8: FACW | AO8: ny,any,pa,mn,wv
G9: =IF(ISERROR(K9/W9),"",K9/W9) ->  | H9: =IF(ISERROR(G9/R9),"",G9/R9) ->  | I9: =IF(ISERROR(G9/$D$38),"",G9/$D$38) ->  | J9: =IF(ISERROR(G9*C9),"",C9*G9) ->  | K9: =IF(ISERROR(J9/43560),"",J9/43560) ->  | L9: =IF(ISERROR(K9/SUM($D$40)),"",K9/SUM($D$40)) ->  | M9: =IF(ISERROR(G9*F9),"",G9*F9) ->  | Q9: =IF(N9="","50",((O9+P9)*N9)/100) -> 50 | R9: =IF(Q9="","",(Q9/100)) -> 0.5 | S9: =IF(ISERROR(G9/R9),"",G9/R9) ->  | T9: =IF(ISERROR(H9*F9),"",F9*H9) ->  | U9: =IF(ISERROR(H9*C9),"",H9*C9) ->  | V9: =IF(ISERROR(U9/43560),"",U9/43560) ->  | Y9: leadplant | Z9: Amorpha canescens | AA9: P | AB9: high | AC9: early,mid | AD9: purple | AE9: 2-3 | AF9: dry, medium | AG9: sun-part | AI9: slow | AJ9: 256000 | AK9: 210 | AL9: WD,MWD, SPW,PD | AM9: legume | AN9: UPL | AO9: any,mi,mn
Q10: 50 | R10: 0.5 | Y10: common bluestar | Z10: Amsonia tabernaemontana | AA10: P | AB10: high | AC10: early | AD10: blue | AE10: 2-4 | AF10: medium, wet | AG10: sun-part | AJ10: 363000 | AL10: WD | AM10: exotic looking flowers | AN10: FACW | AO10: any,
Q11: 50 | R11: 0.5 | Y11: purplestem angelica | Z11: Angelica atropurpurea | AA11: P | AB11: high | AC11: mid | AD11: white | AE11: 1-2 | AF11: medium,wet | AG11: sun | AJ11: 86400 | AK11: 200 | AM11: host for American painted lady caterpillar | AN11: OBL | AO11: any,
Q12: 50 | R12: 0.5 | Y12: indian hemp | Z12: Apocynum cannabinum | AA12: P | AB12: medium,low | AC12: mid | AD12: white | AE12: 2-6 | AF12: dry, med | AG12: full | AH12: 4.5-7 | AI12: high | AJ12: 500000 | AK12: 280 | AL12: WD,MWD,SPD | AM12: extensive root system, fairly aggressive | AN12: FAC | AO12: ny,any
Q13: 50 | R13: 0.5 | Y13: red columbine | Z13: Aquilegia canadensis | AA13: P | AB13: high | AC13: early | AD13: red | AE13: 1-2 | AF13: dry, medium | AG13: sun-part shade | AI13: slow | AJ13: 400000 | AK13: 480 | AL13: WD | AM13: deer resistant, native bees, humming birds | AN13: FACU | AO13: VA,ANY,ny
Q14: 50 | R14: 0.5 | Y14: common milkweed | Z14: Asclepias syriaca | AA14: P | AB14: high | AC14: early, mid | AD14: pink purple | AE14: 3-4 | AF14: dry, med | AG14: full to partial | AH14: 5.6-7.5 | AI14: high | AJ14: 68000 | AK14: 180 | AL14: WD,MWD | AM14: attracts monarchs; cuttings will bloom in first year, seeds may not | AN14: UPL | AO14: ny,any,pa,md,mi,mn
Q15: 50 | R15: 0.5 | Y15: swamp milkweed | Z15: Asclepias incarnata | AA15: P | AB15: high | AC15: mid | AD15: pink | AE15: 2-3 | AF15: wet | AG15: full to partial | AH15: 5-8 | AI15: slow | AJ15: 75000 | AK15: 280 | AL15: SPD,PD | AM15: good for wetlands; great for monarch; high deer resistant | AN15: OBL | AO15: VA,ANY,ny,pa,mi,mn
Q16: 50 | R16: 0.5 | Y16: purple milkweed | Z16: Asclepias purpurascens | AA16: P | AB16: high | AC16: mid | AD16: purple | AE16: 2 -3 | AF16: dry, medium | AG16: sun-part | AI16: mod | AJ16: 72000 | AK16: 800 | AM16: Attracts butterflies, hummingbirds | AN16: FACU | AO16: any,
Q17: 50 | R17: 0.5 | Y17: butterfly milkweed | Z17: Asclepias tuberosa | AA17: P | AB17: high | AC17: mid,late | AD17: orange | AE17: 1-2 | AF17: dry,medium | AG17: full to partial | AH17: 4.8-6.8 | AI17: none | AJ17: 70000 | AK17: 320 | AL17: WD,MWD | AM17: attractive to monarchs | AN17: FAC- | AO17: VA,ANY,ny,nh,pa,me,md,mi,mn
Q18: 50 | R18: 0.5 | Y18: whorled milkweed | Z18: Asclepias verticillata | AA18: P | AB18: high | AC18: mid | AD18: white | AE18: 1-2 | AF18: dry | AG18: sun-part | AI18: mod, rapid | AJ18: 176000 | AK18: 700 | AN18: UPL | AO18: any,
Q19: 50 | R19: 0.5 | Y19: white wild indigo | Z19: Baptisia alba | AA19: P | AB19: high | AC19: early | AD19: white/yellow | AE19: 2-3 | AF19: dry, medium | AG19: sun-part | AI19: slow | AJ19: 30000 | AK19: 180 | AM19: larval food for wild indigo duskywing | AN19: FACU | AO19: any,
Q20: 50 | R20: 0.5 | Y20: blue wild indigo | Z20: Baptisia australis | AA20: P | AB20: medium | AC20: early | AD20: purple/ blue | AE20: 3-5 | AF20: dry, med | AG20: full | AH20: 5.8-7.2 | AI20: none | AJ20: 35000 | AK20: 160 | AL20: WD,MWD | AM20: native legume, great for mixes, bushy habit, good ground cover | AN20: FAC- | AO20: nh,VA,ANY,ny,pa,md
Q21: 50 | R21: 0.5 | Y21: wild indigo | Z21: Baptisia tinctoria | AA21: P | AB21: medium | AC21: early, mid | AD21: yellow | AE21: 1-3 | AF21: dry, med | AG21: full | AH21: 5.8-7 | AI21: none | AJ21: 300000 | AK21: 440 | AM21: very low maintenance | AN21: FAC | AO21: nh,any,ny
Q22: 50 | R22: 0.5 | Y22: bearded beggarticks | Z22: Bidens aristosa | AA22: P | AB22: mediu | AC22: late | AD22: yellow | AE22: 3 | AF22: med, wet | AH22: 5-7 | AJ22: 130000 | AK22: 18 | AL22: MWD,SPD | AN22: FACW | AO22: ny,any
Q23: 50 | R23: 0.5 | Y23: nodding beggartick | Z23: Bidens cernua | AA23: A | AB23: high | AC23: mid, late | AD23: yellow | AE23: 2-3 | AF23: wet | AG23: sun-part | AH23: 5.1-7 | AJ23: 130000 | AK23: 240 | AL23: MWD,SPD,PD | AM23: 2-15% in a mix | AN23: OBL | AO23: VA,ANY
Q24: 50 | R24: 0.5 | Y24: marsh marigold | Z24: Caltha palustris | AA24: P | AB24: high | AC24: early | AD24: yellow | AE24: 1-2 | AF24: med, wet | AG24: sun, part shade | AH24: 6-8 | AI24: slow | AJ24: 416000 | AK24: 600 | AM24: .5-5% in a mix | AN24: OBL | AO24: any,md,mi
Q25: 50 | R25: 0.5 | Y25: bluebell bellflower | Z25: Campanula rotundifolia | AA25: P | AB25: high | AC25: mid,late | AD25: blue-violet | AE25: 1-2 | AF25: dry, medium | AG25: sun-part | AJ25: 14400000 | AK25: 800 | AN25: FACU | AO25: any,
Q26: 50 | R26: 0.5 | Y26: American bellflower | Z26: Campanulastrum americanum | AA26: A | AB26: medium | AC26: mid, late | AD26: blue | AE26: 2-6 | AF26: dry, medium | AG26: sun-part | AJ26: 12800000 | AK26: 600 | AM26: very small seed | AN26: FAC | AO26: any,
A27: Grasses | C27: seeds/lb | D27: soil moisture | E27: height (ft) | F27: cost/PLS lb | G27: lb PLS/A | H27: bulk lbs/A | I27: % of mix/A PLS (wt) | J27: seeds/A PLS | K27: seeds/sq ft (PLS) | L27: % of mix by # of seeds/A | M27: $PLS species/A | Q27: PLS (%) | S27: Bulk Seed Needed (lb/A) | T27: Price/lb of bulk seed | U27: seeds/A Bulk | V27: seeds/sq ft (bulk) | Y27: New Jersey tea | Z27: Ceanothus americanus | AA27: Sh | AB27: high | AC27: early | AD27: blueish-white | AE27: 3-4 | AF27: dry, medium | AG27: sun-shade | AH27: 4.6-6.5 | AI27: slow | AJ27: 116800 | AK27: 700 | AN27: UPL | AO27: any,
C28: =IF(A28="","",VLOOKUP(A28,grassy,10,FALSE)) ->  | D28: =IF(A28="","",VLOOKUP(A28,grassy,11,FALSE)) ->  | E28: =IF(A28="","",VLOOKUP(A28,grassy,8,FALSE)) ->  | F28: =IF(A28="","",VLOOKUP(A28,grassy,5,FALSE)) ->  | G28: =IF(ISERROR(K28/W28),"",K28/W28) ->  | H28: =IF(ISERROR(G28/R28),"",G28/R28) ->  | I28: =IF(ISERROR(G28/$D$38),"",G28/$D$38) ->  | J28: =IF(ISERROR(G28*C28),"",C28*G28) ->  | K28: =IF(ISERROR(J28/43560),"",J28/43560) ->  | L28: =IF(ISERROR(K28/SUM($D$40)),"",K28/SUM($D$40)) ->  | M28: =IF(ISERROR(G28*F28),"",G28*F28) ->  | Q28: 50 | R28: 0.5 | U28: =IF(ISERROR(H28*C28),"",H28*C28) ->  | W28: =IF(A28="","",VLOOKUP(A28,grassy,16,FALSE)) ->  | Y28: partridge pea | Z28: Chamaecrista fasciculata | AA28: P | AB28: high | AC28: early, mid, late | AD28: yellow | AE28: 1-3 | AF28: dry, med | AG28: full to partial | AH28: 5.5-7.5 | AI28: none | AJ28: 65000 | AK28: 10 | AL28: WD,MWD | AM28: good for wildlife and erosion control; legume | AN28: FACU | AO28: VA,ANY,ny,pa,md,mn
G29: =IF(ISERROR(K29/W29),"",K29/W29) ->  | H29: =IF(ISERROR(G29/R29),"",G29/R29) ->  | I29: =IF(ISERROR(G29/$D$38),"",G29/$D$38) ->  | J29: =IF(ISERROR(G29*C29),"",C29*G29) ->  | K29: =IF(ISERROR(J29/43560),"",J29/43560) ->  | L29: =IF(ISERROR(K29/SUM($D$40)),"",K29/SUM($D$40)) ->  | M29: =IF(ISERROR(G29*F29),"",G29*F29) ->  | Q29: 50 | R29: 0.5 | S29: =IF(ISERROR(G29/R29),"",G29/R29) ->  | T29: =IF(ISERROR(H29*F29),"",F29*H29) ->  | U29: =IF(ISERROR(H29*C29),"",H29*C29) ->  | V29: =IF(ISERROR(U29/43560),"",U29/43560) ->  | Y29: white turtlehead | Z29: Chelone glabra | AA29: P | AB29: high | AC29: mid | AD29: White | AE29: 2-4 | AF29: med, wet | AG29: full-shade | AH29: 5.1-6.5 | AI29: slow | AJ29: 1560000 | AK29: 600 | AL29: SPD,PD | AM29: good for shady woods | AN29: OBL | AO29: VA,ANY,ny,nh,
Q30: 50 | R30: 0.5 | Y30: blue chicory | Z30: Cichorium intybus | AA30: P | AB30: very low | AC30: mid, late | AD30: purple | AE30: 1-4 | AF30: dry, med | AG30: full to partial | AH30: 6.0-7.5 | AI30: none | AJ30: 426400 | AK30: 16 | AM30: roadsides, open fields | AN30: FACU | AO30: ny,any
Q31: 50 | R31: 0.5 | Y31: mistflower | Z31: Conoclinium coelestinum | AA31: P | AB31: high | AC31: mid,late | AD31: purple | AE31: 2-3 | AF31: dry,medium | AG31: sun-shade | AH31: 5.5-7.5 | AJ31: 2000000 | AK31: 80 | AM31: Great late season butterfly plant | AN31: FAC | AO31: any,pa
Q32: 50 | R32: 0.5 | Y32: lanced-leaved coreopsis | Z32: Coreopsis lanceolata | AA32: P | AB32: low | AC32: early, mid | AD32: yellow | AE32: 1-3 | AF32: dry, med | AG32: full | AH32: 6.0-7.0 | AI32: none | AJ32: 210000 | AK32: 14 | AL32: WD,MWD | AM32: can tolerate regular mowing | AN32: FACU | AO32: any,ny,mi
Q33: 50 | R33: 0.5 | Y33: plains coreopsis | Z33: Coreopsis tinctoria | AA33: P | AB33: low | AC33: early, mid, late | AD33: yellow | AE33: 1-2 | AF33: dry, med | AG33: full | AH33: 5.2-7.8 | AI33: none | AJ33: 3222222 | AK33: 16 | AL33: WD,MWD,SPD | AM33: flowers in short period of time, may become invasive | AN33: FACU | AO33: VA,ANY,ny,md
Q34: 50 | R34: 0.5 | Y34: tall tickseed | Z34: Coreopsis tripteris | AA34: P | AB34: high | AC34: mid, late | AD34: yellow | AE34: 3-6 | AF34: medium | AG34: sun-part | AI34: mod | AJ34: 200000 | AK34: 300 | AL34: WD,MWD | AM34: prolific seeder | AN34: FAC | AO34: VA,ANY,ny
Q35: 50 | R35: 0.5 | Y35: cosmos | Z35: Cosmos bipinnatus | AA35: A | AB35: high | AC35: mid, late | AD35: pink/white | AE35: 2-4 | AF35: dry,medium | AG35: sun, part sun | AJ35: 70000 | AK35: 12 | AL35: WD | AN35: FAC | AO35: any
Q36: 50 | R36: 0.5 | Y36: Illinios bundleflower | Z36: Desmanthus illinoensis | AA36: P | AB36: high | AC36: mid | AD36: white | AE36: 2-4 | AF36: dry, med | AG36: full | AH36: 5-8 | AJ36: 120000 | AK36: 30 | AN36: FACU | AO36: any,mn
A37: TOTALS FOR MIX BASED ON PLS | Y37: showy tick trefoil | Z37: Desmodium canadense | AA37: P | AB37: medium,low | AC37: mid | AD37: pink/ purple | AE37: 2-6 | AF37: dry, med | AG37: full to partial | AH37: 5.6-6.5 | AI37: n/a | AJ37: 81000 | AK37: 80 | AL37: SPD, WD | AM37: legume, can become invasive | AN37: FAC | AO37: VA,ANY,ny,md,mn
A38: lbs of PLS/Acre | B38: =#REF! ->  | D38: =SUM(gg) -> 0 | E38: SUM FORBS in MIX (by weight) | I38: =SUM(I8:I26) -> 0 | K38: SUM FORBS in MIX (by # of seeds) | P38: =SUM(L8:L26) -> 0 | Y38: flat top white aster | Z38: Doellingeria umbellata | AA38: P | AB38: medium,low | AC38: late | AD38: white | AE38: 3-4 | AF38: med, wet | AG38: full | AH38: 5.6-7.5 | AI38: n/a | AJ38: 1200000 | AK38: 200 | AL38: WD,MWDMSPD, PD | AM38: host to pearl crescent, and silvery checkerspot | AN38: FACW | AO38: ny,any,md
A39: lbs of Bulk Seed/Acre | B39: =#REF! ->  | D39: =SUM(hh) -> 0 | E39: SUM GRASSES in MIX (by weight) | I39: =SUM(I28:I36) -> 0 | K39: SUM GRASSES in MIX (by # of seeds) | P39: =SUM(L28:L36) -> 0 | Y39: pale purple coneflower | Z39: Echinacea pallida | AA39: P | AB39: high | AC39: mid | AD39: purple | AE39: 2-4 | AF39: dry, medium | AG39: sun, part shade | AH39: 6.5-7.2 | AI39: slow | AJ39: 83200 | AK39: 72 | AL39: WD,MWD | AM39: honey beesm native bees (n); goldfinches | AN39: UPL | AO39: any
A40: # of seeds/sq ft. (PLS) | B40: =#REF! ->  | D40: =SUM(K8:K36) -> 0 | Y40: purple coneflower | Z40: Echinacea purpurea | AA40: P | AB40: high | AC40: mid, late | AD40: purple | AE40: .5-2 | AF40: dry, med | AG40: full to partial | AH40: 6.5-7.2 | AI40: mod | AJ40: 115000 | AK40: 28 | AL40: WD-MWD | AM40: easy to grow | AN40: FAC | AO40: ny,any,nh,me,mi,mn
A41: Estimated Total Price (Bulk) | B41: =#REF! ->  | D41: =SUM(T8:T36) -> 0 | Y41: rattlesnake master | Z41: Eryngium yuccifolium | AA41: P | AB41: high | AC41: mid, late | AD41: white | AE41: 3 | AF41: medium | AG41: sun | AH41: 6.5-7.5 | AJ41: 170000 | AK41: 120 | AL41: WD,MWD,SPD,PD | AN41: FAC | AO41: any,mi
A42: Estimated Total Price (PLS) | D42: =SUM(M8:M36) -> 0 | Y42: spotted joe pye weed | Z42: Eupatoriadelphus maculatus | AA42: P | AB42: high | AC42: mid | AD42: pink-purple | AE42: 2-7 | AF42: med, wet | AG42: full to partial | AH42: 5.5-7 | AI42: slow | AJ42: 1500000 | AK42: 240 | AL42: SPD,PD | AM42: attracts butterflies | AN42: FACW | AO42: VA,ANY,ny,md,mi,mn
Y43: boneset | Z43: Eupatorium perfoliatum | AA43: P | AB43: high | AC43: mid, late | AD43: white | AE43: 3-5 | AF43: med, wet | AG43: full to partial | AH43: 6.1-7.8 | AI43: n/a | AJ43: 2880000 | AK43: 220 | AL43: SPD,PD | AM43: from seed, flowers in 2nd to 3rd year. may attract pests | AN43: FACW | AO43: VA,ANY,ny,nh,pa,mi,mn
Y44: sweetscented joepyeweed | Z44: Eupatorium purpureum | AA44: P | AB44: high | AC44: mid summer-fall | AD44: pink-purple | AE44: 2-6 | AF44: dry, medium | AG44: sun-shade | AI44: slow | AJ44: 768000 | AK44: 240 | AM44: butterflies and other insects | AN44: FAC | AO44: any
Y45: bigleaf aster | Z45: Eurybia macrophylla | AA45: P | AB45: medium,low | AC45: late | AD45: purple | AE45: 2-5 | AF45: dry | AG45: full-shade | AH45: 4.9-6.9 | AI45: mod | AJ45: 800000 | AK45: 220 | AM45: provides wildlife habitat, can tolerate some shade | AN45: UPL | AO45: any
Y46: grass-leaved goldenrod | Z46: Euthamia graminifolia | AA46: P | AB46: low | AC46: late | AD46: yellow | AE46: 3-6 | AF46: dry, med | AG46: full | AH46: n/a | AI46: fast | AJ46: 5600000 | AK46: 400 | AL46: SPD, MWD | AM46: food and cover for wildlife | AN46: FAC | AO46: ny,any
Y47: blanketflower | Z47: Gaillardia aristata | AA47: P | AB47: high | AC47: ealy,mid,late | AD47: orange | AE47: 1-1.5 | AF47: dry, medium | AG47: full | AH47: 5.5-7.9 | AJ47: 200000 | AK47: 32 | AM47: honey bees, native bees (n/p) | AN47: FACU | AO47: any
Y48: bottle gentian | Z48: Gentiana clausa | AA48: P | AB48: high | AC48: late | AD48: purple | AE48: 1 | AF48: dry | AG48: full-part | AH48: 5.8-7.2 | AJ48: 2500000 | AK48: 400 | AL48: WD,MWD,SPD | AN48: FACW | AO48: any
Y49: spotted geranium | Z49: Geranium maculatum | AA49: P | AB49: high | AC49: early | AD49: purple | AE49: 2 | AF49: dry, medium | AG49: sun, part sun, shade | AH49: 5.5-8.5 | AJ49: 800000 | AK49: 800 | AN49: FACU | AO49: nh,any,me
Y50: rough avens | Z50: Geum laciniatum | AA50: P | AB50: high | AC50: early | AD50: white | AE50: 3 | AF50: med | AG50: sun-part | AH50: 5-7 | AJ50: 400000 | AK50: 160 | AL50: WD,MWD | AN50: FACW | AO50: any
Y51: common sneezeweed | Z51: Helenium autumnale | AA51: P | AB51: high | AC51: mid, late | AD51: yellow | AE51: 2-5 | AF51: med, wet | AG51: full | AH51: 4.0-7.5 | AI51: none | AJ51: 2000000 | AK51: 80 | AL51: WD,MWD,SPD | AM51: attracts butterflies, flowers late | AN51: FACW | AO51: VA,ANY,ny,nh,,me,mn
Y52: giant sunflower | Z52: Helianthus giganteus | AA52: P | AB52: medium | AC52: mid,late | AD52: yellow | AE52: 3-10 | AF52: dry, med | AG52: full | AH52: 6.1-7.8 | AI52: none | AJ52: 160000 | AK52: 300 | AL52: WD,MWD | AM52: large plant, small flowers | AN52: FACW | AO52: any,nh,ny,mn
Y53: Maximilian sunflower | Z53: Helianthus maximiliani | AA53: P | AB53: high | AC53: late | AD53: yellow | AE53: 6-9 | AF53: dry, med | AG53: full | AH53: 6-8 | AJ53: 190000 | AK53: 36 | AL53: WD,MWD | AN53: UPL | AO53: mi,any
Y54: ashy sunflower | Z54: Helianthus mollis | AA54: P | AB54: medium | AC54: mid, late | AD54: yellow | AE54: 2-6 | AF54: dry | AG54: full | AH54: 5.7-8.0 | AI54: high | AJ54: 125000 | AK54: 180 | AM54: covered with hairs | AN54: UPL | AO54: any
Y55: oxeye sunflower | Z55: Heliopsis helianthoides | AA55: P | AB55: low | AC55: mid | AD55: yellow | AE55: 2-5 | AF55: dry, med | AG55: full to partial | AH55: 6.1-7.8 | AI55: n/a | AJ55: 103900 | AK55: 48 | AL55: MWD, ED | AN55: FAC | AO55: VA,ANY,ny,md,mi,mn
Y56: St Johnswort | Z56: Hypericum perforatum | AA56: P | AB56: low | AC56: mid, late | AD56: yellow | AE56: 1-3 | AF56: dry | AG56: partial | AH56: 5.1-7.5 | AI56: slow | AJ56: 1800000 | AK56: 80 | AL56: WD,MWD,SPD | AN56: UPL | AO56: any,pa
Y57: roundheaded bushclover | Z57: Lespedeza capitata | AA57: P | AB57: very low | AC57: mid | AD57: white | AE57: 2-4 | AF57: dry, med | AG57: full | AH57: 5.7-8.2 | AI57: none | AJ57: 159000 | AK57: 180 | AL57: MWD, ED | AM57: provides food for birds and small wildlife | AN57: FACU | AO57: VA,ANY,ny,mi,mn
Y58: rough blazing star | Z58: Liatris aspera | AA58: P | AB58: high | AC58: mid | AD58: purple | AE58: 3-5 | AF58: dry, med | AG58: full | AH58: 6.6-7.5 | AI58: slow | AJ58: 256000 | AK58: 400 | AL58: WD,MWD | AM58: scarify seed helps, shortest and last to bloom of liatris | AN58: FAC | AO58: any,mi,ny,mn
C59: =IF(A57="","",LOOKUP(A57,common_name,seeds_per_lb)) ->  | Y59: prairie blazing star | Z59: Liatris pycnostachya | AA59: P | AB59: high | AC59: mid, late | AD59: purple | AE59: 4 | AF59: med | AG59: full | AH59: 6.5-7.5 | AI59: slow | AJ59: 176000 | AK59: 225 | AM59: honey bees, bumble bees (n/p) | AN59: FAC | AO59: any,mn
Y60: dense blazing star | Z60: Liatris spicata | AA60: P | AB60: high | AC60: early,mid | AD60: purple | AE60: 3-4 | AF60: med, wet | AG60: full to partial | AH60: 5.6-7.5 | AI60: slow | AJ60: 125000 | AK60: 180 | AL60: WD,MWD | AM60: good for rain gardens | AN60: FACW | AO60: VA,ANY,pa,ny
Y61: perennial blue flax | Z61: Linum perenne | AA61: P | AB61: high | AC61: early, late | AD61: blue | AE61: 2-3 | AF61: dry, med | AG61: full to partial | AH61: 6.1-7.8 | AI61: slow | AJ61: 295000 | AK61: 20 | AM61: not native and short lived | AN61: FAC | AO61: VA,ANY,pa
Y62: cardinal flower | Z62: Lobelia cardinalis | AA62: P | AB62: high | AC62: mid, late | AD62: red | AE62: 1-6 | AF62: med, wet | AG62: full to partial | AH62: 5.8-7.8 | AI62: none | AJ62: 7320000 | AK62: 560 | AL62: SPD,PD | AM62: provides nectar for bees and hummingbirds, butterflies | AN62: OBL | AO62: VA,ANY,ny,pa,mi
Y63: great blue lobelia | Z63: Lobelia siphilitica | AA63: P | AB63: very high | AC63: mid, late | AD63: purple | AE63: 2-5 | AF63: med, wet | AG63: full to partial | AH63: 6.0-7.5 | AI63: n/a | AJ63: 6400000 | AK63: 280 | AL63: SPD,PD | AN63: FACW | AO63: VA,ANY,ny,pa,mi,mn
Y64: palespike lobelia | Z64: Lobelia spicata | AA64: P | AB64: high | AC64: early | AD64: purple | AE64: 2-3 | AF64: dry, medium | AG64: sun-part shade | AJ64: 14400000 | AK64: 24 | AL64: WD | AM64: humming birds | AN64: FAC | AO64: any,nh
Y65: lupine | Z65: Lupinus perennis | AA65: P | AB65: high | AC65: early | AD65: blue | AE65: 1-2 | AF65: dry, med | AG65: full to partial | AH65: 4.6-7.2 | AI65: none | AJ65: 18800 | AK65: 200 | AL65: MWD, ED | AM65: provides food and habitat for butterflies, not for restoration | AN65: FACU | AO65: md,nh,any,pa,mi
Y66: bigleaf lupine | Z66: Lupinus polyphyllus | AA66: P | AB66: high | AC66: early,mid | AD66: purple | AE66: 2-3 | AF66: dry | AG66: full-part | AJ66: 75000 | AK66: 24 | AN66: FACU | AO66: any
Y67: Alleghany monkey flower | Z67: Mimulus ringens | AA67: P | AB67: medium,low | AC67: mid | AD67: light purple | AE67: 1-3 | AF67: medium, wet | AG67: full to partial | AH67: 5.6-7.5 | AI67: n/a | AJ67: 36800000 | AK67: 180 | AL67: SPD,PD | AM67: provides cover for wildlife | AN67: OBL | AO67: VA,ANY,pa
Y68: bee balm | Z68: Monarda didyma | AA68: P | AB68: high | AC68: mid | AD68: red | AE68: 2-4 | AF68: wet, medium | AG68: sun-part | AI68: mod | AJ68: 800000 | AK68: 400 | AL68: WD,MWD, SPD | AM68: Attracts hummingbirds and great nectar source for butterflies | AN68: FAC | AO68: VA,ANY,pa
Y69: wild bergamot | Z69: Monarda fistulosa | AA69: P | AB69: very high | AC69: early, mid | AD69: purple/ dark pink | AE69: 2-5 | AF69: dry, med | AG69: full to partial | AH69: 6-8 | AI69: mod | AJ69: 1200000 | AK69: 240 | AL69: WD,MWD | AM69: provides nectar for bees and hummingbirds, butterflies | AN69: FACU | AO69: VA,ANY,ny,nh,me,mi,mn
Y70: purple bergamot | Z70: Monarda media | AA70: P | AB70: very high | AC70: early | AD70: purple | AE70: 2-4 | AF70: med | AG70: full to partial | AH70: 6.0-7.8 | AI70: mod | AJ70: 1120000 | AK70: 240 | AM70: attracts bees and butterflies | AN70: FAC | AO70: any,ny,md
Y71: spotted beebalm | Z71: Monarda punctata | AA71: BI | AB71: high | AC71: early, mid | AD71: pink/ white | AE71: .5-3 | AF71: dry | AG71: full | AH71: 6.8-7.2 | AI71: mod | AJ71: 1440000 | AK71: 180 | AM71: sensitive to overwatering | AN71: UPL | AO71: any,ny,nh,pa
Y72: evening primrose | Z72: Oenothera biennis | AA72: BI | AB72: medium | AC72: mid,late | AD72: yellow | AE72: 4-5 | AF72: dry, med | AG72: full | AH72: 6.1-7.8 | AI72: none | AJ72: 1376000 | AK72: 32 | AM72: may become weedy or invasive | AN72: FACU | AO72: any,ny,mn
Y73: Riddell's Goldenrod | Z73: Oligoneuron riddellii | AA73: P | AB73: high | AC73: late | AD73: yellow | AE73: 2-4 | AF73: wet | AG73: full | AH73: 7.0-8.0 | AI73: some | AJ73: 1424000 | AK73: 200 | AM73: listed as species at risk, Not Native to NY | AN73: OBL | AO73: any
Y74: stiff goldenrod | Z74: Oligoneuron rigidum | AA74: P | AB74: high | AC74: late | AD74: yellow | AE74: 4 | AF74: dry, med | AG74: full-part | AH74: 5.5-7.5 | AI74: rapid | AJ74: 1000000 | AK74: 220 | AN74: FACU | AO74: any,md,mi
Y75: eastern grey beardtongue | Z75: Penstemon canescens | AA75: P | AB75: high | AC75: early | AD75: purple | AE75: 1-2 | AF75: dry | AG75: sun-part | AJ75: 1000000 | AK75: 400 | AL75: WD | AM75: early season color | AN75: FAC | AO75: any
Y76: tall white beard tongue | Z76: Penstemon digitalis | AA76: P | AB76: high | AC76: early | AD76: white | AE76: 2-5 | AF76: dry, med | AG76: full to partial | AH76: 5.5-7 | AI76: mod | AJ76: 2000000 | AK76: 108 | AL76: WD,MWD | AM76: a durable early plant | AN76: FAC | AO76: nh,any,ny,pa,me,md
Y77: hairy beardtongue | Z77: Penstemon hirsutus | AA77: P | AB77: high | AC77: early,mid | AD77: Pale violet | AE77: 2-3 | AF77: dry, med | AG77: full-shade | AH77: 6.0-7.5 | AI77: none | AJ77: 3250000 | AK77: 240 | AL77: WD,MWD | AN77: FACU | AO77: mi,nh,ny,any
Y78: eastern smooth beardtongue | Z78: Penstemon laevigatus | AA78: P | AB78: high | AC78: early | AD78: purple/white | AE78: 2-4 | AF78: dry | AG78: full-shade | AJ78: 1500000 | AK78: 240 | AL78: WD,MWD | AM78: meadows woods roadsides | AN78: FACU | AO78: VA,ANY
Y79: obedient plant | Z79: Physostegia virginiana | AA79: P | AB79: high | AC79: late | AD79: pink/white | AE79: 2 - 4 | AF79: medium, wet | AG79: Sun/part shade | AI79: rapid | AJ79: 176000 | AK79: 640 | AM79: deer resistant, Attracts fall migrating hummingbirds | AN79: FACW | AO79: any,nh
Y80: Virginia mountain mint | Z80: Pycnanthemum virginianum | AA80: P | AB80: high | AC80: mid, late | AD80: white | AE80: 2-3 | AF80: med, wet | AG80: full to partial | AH80: 5.0-7.5 | AI80: slow | AJ80: 3840000 | AK80: 480 | AL80: WD,MWD | AM80: very fragrant | AN80: FACW | AO80: VA,ANY,ny,nh,pa,me,mn
Y81: gray headed coneflower | Z81: Ratibida pinnata | AA81: P | AB81: medium | AC81: mid | AD81: yellow | AE81: 3-5 | AF81: dry, med | AG81: full to partial | AH81: 5.6-6.8 | AI81: none | AJ81: 550000 | AK81: 60 | AL81: WD,MWD | AN81: FAC | AO81: any,ny,mi,mn
Y82: orange coneflower | Z82: Rudbeckia fulgida | AA82: P | AB82: high | AC82: mid, late | AD82: yellow | AE82: 2 - 4 | AF82: medium,wet | AG82: sun, part sun | AJ82: 496000 | AK82: 248 | AM82: Drought tolerant, birds eat seeds | AN82: OBL | AO82: any
Y83: black-eyed susan | Z83: Rudbeckia hirta | AA83: BI | AB83: low | AC83: early, mid, late | AD83: yellow/ orange | AE83: 2-3 | AF83: dry, med | AG83: full to partial | AH83: 6-7 | AI83: none | AJ83: 1500000 | AK83: 24 | AL83: SPD, WD | AM83: food an cover for birds | AN83: FACU | AO83: VA,ANY,ny,md,mi,mn
Y84: cutleaf coneflower | Z84: Rudbeckia lacinata | AA84: P | AB84: high | AC84: mid | AD84: yellow | AE84: 3-6 | AF84: mdium, medium | AG84: sun-part | AI84: slow | AJ84: 240000 | AK84: 200 | AM84: honey bees, native bees (n/p), goldfinches, deer resistanat | AN84: FACU | AO84: any,me
Y85: browneyed Susan | Z85: Rudbeckia triloba | AA85: P | AB85: high | AC85: late | AD85: yellow | AE85: 1-3 | AF85: dry,medium | AG85: sun-part | AJ85: 536000 | AK85: 80 | AL85: WD.MWD | AM85: native bees, bumble bees (n), goldfinches | AN85: FACU | AO85: any
Y86: wild senna | Z86: Senna hebecarpa | AA86: P | AB86: medium | AC86: mid | AD86: yellow | AE86: 4-6 | AF86: dry, med | AG86: full to partial | AH86: 6.5-7.5 | AI86: n/a | AJ86: 22680 | AK86: 18 | AM86: short flowering legumes | AN86: FACW | AO86: ny,any,md
Y87: blue-eyed grass | Z87: Sisyrinchium angustifolium | AA87: P | AB87: high | AC87: early | AD87: blue | AE87: 1 | AF87: dry,medium | AG87: sun-part | AJ87: 480000 | AK87: 200 | AL87: WD,SPW,PD | AN87: FAC | AO87: any
Y88: bluestem goldenrod | Z88: Solidago caesia | AA88: P | AB88: high | AC88: late | AD88: yellow | AE88: 1-3 | AF88: dry, med | AG88: full to partial | AH88: 5.5-7 | AI88: slow | AJ88: 4000000 | AK88: 450 | AL88: WD,MWD | AM88: wood edges | AN88: FACU | AO88: ny,any
Y89: zigzag goldenrod | Z89: Solidago flexicaulis | AA89: P | AB89: high | AC89: late | AD89: yellow | AE89: 1-4 | AF89: dry, medium | AG89: sun-shade | AJ89: 1344000 | AK89: 900 | AM89: moderate spreader | AN89: FACU | AO89: any
Y90: early goldenrod | Z90: Solidago juncea | AA90: P | AB90: high | AC90: mid, late | AD90: yellow | AE90: 3-6 | AF90: dry | AG90: full to partial | AH90: 5.0-7.0 | AI90: n/a | AJ90: 2000000 | AK90: 220 | AM90: first goldenrod of the season to bloom | AN90: UPL | AO90: ny,any,nh
Y91: gray goldenrod | Z91: Solidago nemoralis | AA91: P | AB91: very high | AC91: late | AD91: yellow | AE91: .5-2.5 | AF91: dry | AG91: full | AH91: 6.5-7.5 | AI91: rapid | AJ91: 1008000 | AK91: 260 | AL91: WD,MWD | AM91: survives in low fertility soil, provides nectar for butterflies | AN91: UPL | AO91: ny,any,md
Y92: rough leaved goldenrod | Z92: Solidago patula | AA92: P | AB92: high | AC92: late | AD92: yellow | AE92: 4-5 | AF92: wet | AG92: full-partial | AH92: 4.5-7 | AI92: rapid | AJ92: 900000 | AK92: 400 | AL92: SPD,PD | AN92: OBL | AO92: ny,any
Y93: wrinkleleaf goldenrod | Z93: Solidago rugosa | AA93: P | AB93: high | AC93: late | AD93: yellow | AE93: 2-6 | AF93: dry,medium | AG93: sun-part | AH93: 5-7.5 | AI93: mod | AJ93: 1480000 | AK93: 320 | AL93: WD,MWD | AM93: "fireworks" will not spread | AN93: FAC | AO93: VA,ANY,ny
Y94: showy goldenrod | Z94: Solidago speciosa | AA94: P | AB94: high | AC94: late | AD94: yellow | AE94: 1-5 | AF94: dry | AG94: full to partial | AH94: 5.1-7.5 | AI94: n/a | AJ94: 1600000 | AK94: 160 | AL94: WD,MWD | AM94: very attractive to butterflies, bees, ants, beetles | AN94: UPL | AO94: VA,ANY,ny,nh,mn,
Y95: common blue wood aster | Z95: Symphyotrichum cordifolium | AA95: P | AB95: high | AC95: late | AD95: blue-purple | AE95: 2-3 | AF95: dry, medium | AG95: part sun, shade | AH95: 5.7-7.5 | AI95: mod | AJ95: 2000000 | AK95: 260 | AL95: MWD,WD | AM95: abundant seed producer,in woodland clearings | AN95: UPL | AO95: any
Y96: smooth blue aster | Z96: Symphyotrichum laeve | AA96: P | AB96: high | AC96: late | AD96: blue/ purple | AE96: 1-3 | AF96: dry, med | AG96: full | AH96: 5.8-7.8 | AI96: mod | AJ96: 1000000 | AK96: 220 | AL96: MWD,WD | AM96: fiborous root system | AN96: FACU | AO96: VA,ANY,ny,nh,md,mi,mn
Y97: white panicle aster | Z97: Symphyotrichum lanceolatum | AA97: P | AB97: high | AC97: mid,late | AD97: white | AE97: 2-5 | AF97: medium | AG97: sun-part | AI97: mid | AJ97: 2256000 | AL97: WD | AM97: 1-5% in a mix | AN97: FACW | AO97: any
Y98: calico aster | Z98: Symphyotrichum lateriflorum | AA98: P | AB98: high | AC98: late | AD98: white/ changng | AE98: 1-5 | AF98: dry, med | AG98: full-shade | AH98: 6.1-6.5 | AI98: some | AJ98: 3200000 | AK98: 260 | AM98: found in forested areas, horizontal branches | AN98: FAC | AO98: any,ny,nh,md
Y99: New England aster | Z99: Symphyotrichum novae-angliae | AA99: P | AB99: very high | AC99: late | AD99: purple | AE99: 2-6 | AF99: med, wet | AG99: full to partial | AH99: 5.6-7.5 | AI99: n/a | AJ99: 1120000 | AK99: 280 | AL99: WD, MWD | AM99: provides food and cover for wildlife and butterflies | AN99: FACW | AO99: VA,ANY,ny,pa,me,md,mi,mn
Y100: New York aster | Z100: Symphyotrichum novi-belgii | AA100: P | AB100: high | AC100: late | AD100: purple | AE100: 4-5 | AF100: med, wet | AG100: full | AH100: 5.5-7 | AI100: mod | AJ100: 800000 | AK100: 240 | AL100: SPD,PD,MWD | AM100: prone to mildew | AN100: FACW | AO100: VA,ANY,ny,nh,pa,me
Y101: aromatic aster | Z101: Symphyotrichum oblongifolium | AA101: P | AB101: high | AC101: late | AD101: violet | AE101: 2-3 | AF101: dry, medium | AG101: sun | AJ101: 816000 | AK101: 220 | AL101: WD | AM101: 1-5% in a mix | AN101: UPL | AO101: any,md
Y102: zigzag aster | Z102: Symphyotrichum prenanthoides | AA102: P | AB102: high | AC102: late | AD102: pink/ purple | AE102: 2-4 | AF102: dry, med | AG102: partial to shade | AH102: 5.5-7.2 | AI102: mod | AJ102: 700000 | AK102: 180 | AL102: WD,MWD,SPD | AM102: provides nectar for butterflies | AN102: FAC | AO102: any,md
Y103: purplestem aster | Z103: Symphyotrichum puniceum | AA103: P | AB103: high | AC103: late | AD103: violet | AE103: 3-6 | AF103: medium, wet | AG103: sun | AH103: 4.5-7.5 | AI103: slow | AJ103: 1216000 | AK103: 280 | AL103: WD,MWD, SPW,PD | AM103: nectar for butterflies | AN103: OBL | AO103: any
Y104: Ohio spiderwort | Z104: Tradescantia ohiensis | AA104: P | AB104: high | AC104: early, mid | AD104: purple | AE104: 1-3 | AF104: dry, med | AG104: full to partial | AH104: 6.6-7.5 | AI104: n/a | AJ104: 128000 | AK104: 160 | AL104: WD,MWD, SPW,PD | AM104: self seeds, can become invasive | AN104: FACU | AO104: ny,any,md
Y105: zigzag spiderwort | Z105: Tradescantia subaspera | AA105: P | AB105: high | AC105: mid | AD105: purple | AE105: 2-3 | AF105: med, wet | AG105: partial | AH105: 5-6-7.8 | AI105: n/a | AJ105: 130000 | AK105: 64 | AL105: WD,MWD, SPW,PD | AM105: bloom period fairly long. Pollinated by bees, sytphid flies | AN105: FACW | AO105: ny,any
Y106: alsike clover | Z106: Trifolium hybridum | AA106: P | AB106: high | AC106: early,late | AD106: pink-white | AE106: 2-4 | AF106: dry, med | AG106: full | AH106: 5.6-7.5 | AI106: none | AJ106: 680000 | AK106: 3 | AL106: WD,MWD, SPW,PD | AM106: introduced | AN106: FACU | AO106: ny,any,pa,md
Y107: blue vervain | Z107: Verbena hastata | AA107: P | AB107: medium | AC107: early, mid | AD107: purple | AE107: 2-5 | AF107: med, wet | AG107: full to partial | AH107: 5.6-7.5 | AI107: n/a | AJ107: 1544000 | AK107: 60 | AL107: SPD, PD | AM107: easily seeded | AN107: FACW | AO107: VA,ANY,ny,pa,mi
Y108: hoary vervain | Z108: Verbena stricta | AA108: P | AB108: high | AC108: mid | AD108: purple | AE108: 4-6 | AF108: dry, med | AG108: full | AH108: 5.6-7.5 | AI108: slow | AJ108: 1000000 | AK108: 80 | AM108: does not compete with vigorous grasses | AN108: FACU | AO108: ny,any
Y109: white vervain | Z109: Verbena urticifolia | AA109: P | AB109: medium | AC109: early | AD109: white | AE109: 3-5 | AF109: dry, med | AG109: full to partial | AH109: 6.6-7.5 | AI109: n/a | AJ109: 480000 | AK109: 120 | AL109: SPD, WD | AN109: FAC | AO109: ny,any
Y110: wingstem | Z110: Verbesina alternifolia | AA110: P | AB110: medium,low | AC110: mid, late | AD110: yellow | AE110: 3-8 | AF110: med, wet | AG110: full to partial | AH110: n/a | AI110: n/a | AJ110: 180000 | AK110: 180 | AL110: SPD, PD | AM110: threatened in NYS | AN110: FACW | AO110: ny,any,pa
Y111: NY ironweed | Z111: Vernonia noveboracensis | AA111: P | AB111: high | AC111: mid | AD111: purple | AE111: 4-6 | AF111: med, wet | AG111: full to partial | AH111: 5.1-7.5 | AI111: none | AJ111: 300000 | AK111: 220 | AM111: deer and rabbit resistance | AN111: FACW | AO111: VA,ANY,ny
Y112: culver's root | Z112: Veronicastrum virginicum | AA112: P | AB112: high | AC112: early, mid | AD112: white | AE112: 2-6 | AF112: dry, med | AG112: full to partial | AH112: 6.6-7.8 | AI112: n/a | AJ112: 12400000 | AK112: 640 | AM112: attracts butterflies and bees | AN112: FAC | AO112: ny,any,nh,mn
Y113: meadow zizia | Z113: Zizia aptera | AA113: P | AB113: high | AC113: early | AD113: yellow | AE113: 1-3 | AF113: dry | AG113: sun-part | AJ113: 176000 | AK113: 230 | AM113: endangered inCT, great for warerfowl | AN113: FACU | AO113: any,
Y114: golden alexanders | Z114: Zizia aurea | AA114: P | AB114: high | AC114: early | AD114: yellow | AE114: 1-2 | AF114: dry, med | AG114: full to partial | AH114: 6.1-7.8 | AI114: n/a | AJ114: 176000 | AK114: 180 | AL114: SPD, WD | AM114: one of the earliest blooming natives | AN114: FAC | AO114: ny,any,md,mn

Sheet SEEDINGPLANSHEET
C1: Name: | G1: Date: | H1: =TODAY() -> 2020-01-02
C2: Prepared By: | G2: Tract No:
G3: Field No:
G4: Contract No: | N4: DELETES UNUSED ROWS
G5: Area of Field (in Acres): | H5: 1
B9: Scientific Name | C9: Common Name | D9: PLS for lot of seed | E9: lbs/A (PLS) Seeding Rate | F9: Seeds/ sq Foot (PLS) | G9: Seeds/ sq foot (Bulk) | H9: lbs/A (Bulk) Seed ordered | I9: Estimated Cost (lb/A) **
B10: FORBS/LEGUMES | K10: **NEED TO RESET THIS SHEET TO PUT THE LINES BACK
A11: 1 | B11: =IF(ISNA(VLOOKUP(calculator!A8,NEWALLSPECIES,2,FALSE)),"",VLOOKUP(calculator!A8,NEWALLSPECIES,2,FALSE)) ->  | C11: =IF(ISBLANK(calculator!A8),"",calculator!A8) ->  | D11: =IF(C11="","",calculator!R8) ->  | E11: =IF(C11="","",calculator!G8) ->  | F11: =IF(C11="","",calculator!K8) ->  | G11: =IF(C11="","",calculator!V8) ->  | H11: =IF(C11="","",$H$5*calculator!H8) ->  | I11: =IF(C11="","",H11*calculator!F8) ->  | K11: **WHEN CALCULATOR IS RESET, THIS SHEET WILL CLEAR
A12: 2 | B12: =IF(ISNA(VLOOKUP(calculator!A9,NEWALLSPECIES,2,FALSE)),"",VLOOKUP(calculator!A9,NEWALLSPECIES,2,FALSE)) ->  | C12: =IF(ISBLANK(calculator!A9),"",calculator!A9) ->  | D12: =IF(C12="","",calculator!R9) ->  | E12: =IF(C12="","",calculator!G9) ->  | F12: =IF(C12="","",calculator!K9) ->  | G12: =IF(C12="","",calculator!V9) ->  | H12: =IF(C12="","",$H$5*calculator!H9) ->  | I12: =IF(C12="","",H12*calculator!F9) -> 
A13: 3 | B13: =IF(ISNA(VLOOKUP(calculator!A10,NEWALLSPECIES,2,FALSE)),"",VLOOKUP(calculator!A10,NEWALLSPECIES,2,FALSE)) ->  | C13: =IF(ISBLANK(calculator!A10),"",calculator!A10) ->  | D13: =IF(C13="","",calculator!R10) ->  | E13: =IF(C13="","",calculator!G10) ->  | F13: =IF(C13="","",calculator!K10) ->  | G13: =IF(C13="","",calculator!V10) ->  | H13: =IF(C13="","",$H$5*calculator!H10) ->  | I13: =IF(C13="","",H13*calculator!F10) -> 
A14: 4 | B14: =IF(ISNA(VLOOKUP(calculator!A11,NEWALLSPECIES,2,FALSE)),"",VLOOKUP(calculator!A11,NEWALLSPECIES,2,FALSE)) ->  | C14: =IF(ISBLANK(calculator!A11),"",calculator!A11) ->  | D14: =IF(C14="","",calculator!R11) ->  | E14: =IF(C14="","",calculator!G11) ->  | F14: =IF(C14="","",calculator!K11) ->  | G14: =IF(C14="","",calculator!V11) ->  | H14: =IF(C14="","",$H$5*calculator!H11) ->  | I14: =IF(C14="","",H14*calculator!F11) -> 
A15: 5 | B15: =IF(ISNA(VLOOKUP(calculator!A12,NEWALLSPECIES,2,FALSE)),"",VLOOKUP(calculator!A12,NEWALLSPECIES,2,FALSE)) ->  | C15: =IF(ISBLANK(calculator!A12),"",calculator!A12) ->  | D15: =IF(C15="","",calculator!R12) ->  | E15: =IF(C15="","",calculator!G12) ->  | F15: =IF(C15="","",calculator!K12) ->  | G15: =IF(C15="","",calculator!V12) ->  | H15: =IF(C15="","",$H$5*calculator!H12) ->  | I15: =IF(C15="","",H15*calculator!F12) -> 
A16: 6 | B16: =IF(ISNA(VLOOKUP(calculator!A13,NEWALLSPECIES,2,FALSE)),"",VLOOKUP(calculator!A13,NEWALLSPECIES,2,FALSE)) ->  | C16: =IF(ISBLANK(calculator!A13),"",calculator!A13) ->  | D16: =IF(C16="","",calculator!R13) ->  | E16: =IF(C16="","",calculator!G13) ->  | F16: =IF(C16="","",calculator!K13) ->  | G16: =IF(C16="","",calculator!V13) ->  | H16: =IF(C16="","",$H$5*calculator!H13) ->  | I16: =IF(C16="","",H16*calculator!F13) -> 
A17: 7 | B17: =IF(ISNA(VLOOKUP(calculator!A14,NEWALLSPECIES,2,FALSE)),"",VLOOKUP(calculator!A14,NEWALLSPECIES,2,FALSE)) ->  | C17: =IF(ISBLANK(calculator!A14),"",calculator!A14) ->  | D17: =IF(C17="","",calculator!R14) ->  | E17: =IF(C17="","",calculator!G14) ->  | F17: =IF(C17="","",calculator!K14) ->  | G17: =IF(C17="","",calculator!V14) ->  | H17: =IF(C17="","",$H$5*calculator!H14) ->  | I17: =IF(C17="","",H17*calculator!F14) -> 
A18: 8 | B18: =IF(ISNA(VLOOKUP(calculator!A15,NEWALLSPECIES,2,FALSE)),"",VLOOKUP(calculator!A15,NEWALLSPECIES,2,FALSE)) ->  | C18: =IF(ISBLANK(calculator!A15),"",calculator!A15) ->  | D18: =IF(C18="","",calculator!R15) ->  | E18: =IF(C18="","",calculator!G15) ->  | F18: =IF(C18="","",calculator!K15) ->  | G18: =IF(C18="","",calculator!V15) ->  | H18: =IF(C18="","",$H$5*calculator!H15) ->  | I18: =IF(C18="","",H18*calculator!F15) -> 
A19: 9 | B19: =IF(ISNA(VLOOKUP(calculator!A16,NEWALLSPECIES,2,FALSE)),"",VLOOKUP(calculator!A16,NEWALLSPECIES,2,FALSE)) ->  | C19: =IF(ISBLANK(calculator!A16),"",calculator!A16) ->  | D19: =IF(C19="","",calculator!R16) ->  | E19: =IF(C19="","",calculator!G16) ->  | F19: =IF(C19="","",calculator!K16) ->  | G19: =IF(C19="","",calculator!V16) ->  | H19: =IF(C19="","",$H$5*calculator!H16) ->  | I19: =IF(C19="","",H19*calculator!F16) -> 
A20: 10 | B20: =IF(ISNA(VLOOKUP(calculator!A17,NEWALLSPECIES,2,FALSE)),"",VLOOKUP(calculator!A17,NEWALLSPECIES,2,FALSE)) ->  | C20: =IF(ISBLANK(calculator!A17),"",calculator!A17) ->  | D20: =IF(C20="","",calculator!R17) ->  | E20: =IF(C20="","",calculator!G17) ->  | F20: =IF(C20="","",calculator!K17) ->  | G20: =IF(C20="","",calculator!V17) ->  | H20: =IF(C20="","",$H$5*calculator!H17) ->  | I20: =IF(C20="","",H20*calculator!F17) -> 
A21: 11 | B21: =IF(ISNA(VLOOKUP(calculator!A18,NEWALLSPECIES,2,FALSE)),"",VLOOKUP(calculator!A18,NEWALLSPECIES,2,FALSE)) ->  | C21: =IF(ISBLANK(calculator!A18),"",calculator!A18) ->  | D21: =IF(C21="","",calculator!R18) ->  | E21: =IF(C21="","",calculator!G18) ->  | F21: =IF(C21="","",calculator!K18) ->  | G21: =IF(C21="","",calculator!V18) ->  | H21: =IF(C21="","",$H$5*calculator!H18) ->  | I21: =IF(C21="","",H21*calculator!F18) -> 
A22: 12 | B22: =IF(ISNA(VLOOKUP(calculator!A19,NEWALLSPECIES,2,FALSE)),"",VLOOKUP(calculator!A19,NEWALLSPECIES,2,FALSE)) ->  | C22: =IF(ISBLANK(calculator!A19),"",calculator!A19) ->  | D22: =IF(C22="","",calculator!R19) ->  | E22: =IF(C22="","",calculator!G19) ->  | F22: =IF(C22="","",calculator!K19) ->  | G22: =IF(C22="","",calculator!V19) ->  | H22: =IF(C22="","",$H$5*calculator!H19) ->  | I22: =IF(C22="","",H22*calculator!F19) -> 
A23: 13 | B23: =IF(ISNA(VLOOKUP(calculator!A20,NEWALLSPECIES,2,FALSE)),"",VLOOKUP(calculator!A20,NEWALLSPECIES,2,FALSE)) ->  | C23: =IF(ISBLANK(calculator!A20),"",calculator!A20) ->  | D23: =IF(C23="","",calculator!R20) ->  | E23: =IF(C23="","",calculator!G20) ->  | F23: =IF(C23="","",calculator!K20) ->  | G23: =IF(C23="","",calculator!V20) ->  | H23: =IF(C23="","",$H$5*calculator!H20) ->  | I23: =IF(C23="","",H23*calculator!F20) -> 
A24: 14 | B24: =IF(ISNA(VLOOKUP(calculator!A21,NEWALLSPECIES,2,FALSE)),"",VLOOKUP(calculator!A21,NEWALLSPECIES,2,FALSE)) ->  | C24: =IF(ISBLANK(calculator!A21),"",calculator!A21) ->  | D24: =IF(C24="","",calculator!R21) ->  | E24: =IF(C24="","",calculator!G21) ->  | F24: =IF(C24="","",calculator!K21) ->  | G24: =IF(C24="","",calculator!V21) ->  | H24: =IF(C24="","",$H$5*calculator!H21) ->  | I24: =IF(C24="","",H24*calculator!F21) -> 
A25: 15 | B25: =IF(ISNA(VLOOKUP(calculator!A22,NEWALLSPECIES,2,FALSE)),"",VLOOKUP(calculator!A22,NEWALLSPECIES,2,FALSE)) ->  | C25: =IF(ISBLANK(calculator!A22),"",calculator!A22) ->  | D25: =IF(C25="","",calculator!R22) ->  | E25: =IF(C25="","",calculator!G22) ->  | F25: =IF(C25="","",calculator!K22) ->  | G25: =IF(C25="","",calculator!V22) ->  | H25: =IF(C25="","",$H$5*calculator!H22) ->  | I25: =IF(C25="","",H25*calculator!F22) -> 
B26: GRASSES | D26: =IF(C26="","",calculator!R23) ->  | F26: =IF(C26="","",calculator!K27) ->  | G26: =IF(C26="","",calculator!V27) ->  | H26: =IF(C26="","",$H$5*calculator!H27) ->  | I26: =IF(C26="","",H26*calculator!F23) -> 
A27: 1 | B27: =IF(ISNA(VLOOKUP(calculator!A28,grassy,2,FALSE))," ",VLOOKUP(calculator!A28,grassy,2,FALSE)) ->  | C27: =IF(ISBLANK(calculator!A28),"",calculator!A28) ->  | D27: =IF(C27="","",calculator!R28) ->  | E27: =IF(C27="","",calculator!G28) ->  | F27: =IF(C27="","",calculator!K28) ->  | G27: =IF(C27="","",calculator!V28) ->  | H27: =IF(C27="","",$H$5*calculator!H28) ->  | I27: =IF(C27="","",H27*calculator!F24) -> 
A28: 2 | B28: =IF(ISNA(VLOOKUP(calculator!A29,grassy,2,FALSE))," ",VLOOKUP(calculator!A29,grassy,2,FALSE)) ->  | C28: =IF(ISBLANK(calculator!A29),"",calculator!A29) ->  | D28: =IF(C28="","",calculator!R29) ->  | E28: =IF(C28="","",calculator!G29) ->  | F28: =IF(C28="","",calculator!K29) ->  | G28: =IF(C28="","",calculator!V29) ->  | H28: =IF(C28="","",$H$5*calculator!H29) ->  | I28: =IF(C28="","",H28*calculator!F25) -> 
A29: 3 | B29: =IF(ISNA(VLOOKUP(calculator!A30,grassy,2,FALSE))," ",VLOOKUP(calculator!A30,grassy,2,FALSE)) ->  | C29: =IF(ISBLANK(calculator!A30),"",calculator!A30) ->  | D29: =IF(C29="","",calculator!R30) ->  | E29: =IF(C29="","",calculator!G30) ->  | F29: =IF(C29="","",calculator!K30) ->  | G29: =IF(C29="","",calculator!V30) ->  | H29: =IF(C29="","",$H$5*calculator!H30) ->  | I29: =IF(C29="","",H29*calculator!F26) -> 
A30: 4 | B30: =IF(ISNA(VLOOKUP(calculator!A31,grassy,2,FALSE))," ",VLOOKUP(calculator!A31,grassy,2,FALSE)) ->  | C30: =IF(ISBLANK(calculator!A31),"",calculator!A31) ->  | D30: =IF(C30="","",calculator!R31) ->  | E30: =IF(C30="","",calculator!G31) ->  | F30: =IF(C30="","",calculator!K31) ->  | G30: =IF(C30="","",calculator!V31) ->  | H30: =IF(C30="","",$H$5*calculator!H31) ->  | I30: =IF(C30="","",H30*calculator!F27) -> 
A31: 5 | B31: =IF(ISNA(VLOOKUP(calculator!A32,grassy,2,FALSE))," ",VLOOKUP(calculator!A32,grassy,2,FALSE)) ->  | C31: =IF(ISBLANK(calculator!A32),"",calculator!A32) ->  | D31: =IF(C31="","",calculator!R32) ->  | E31: =IF(C31="","",calculator!G32) ->  | F31: =IF(C31="","",calculator!K32) ->  | G31: =IF(C31="","",calculator!V32) ->  | H31: =IF(C31="","",$H$5*calculator!H32) ->  | I31: =IF(C31="","",H31*calculator!F28) -> 
A32: 6 | B32: =IF(ISNA(VLOOKUP(calculator!A33,grassy,2,FALSE))," ",VLOOKUP(calculator!A33,grassy,2,FALSE)) ->  | C32: =IF(ISBLANK(calculator!A33),"",calculator!A33) ->  | D32: =IF(C32="","",calculator!R33) ->  | E32: =IF(C32="","",calculator!G33) ->  | F32: =IF(C32="","",calculator!K33) ->  | G32: =IF(C32="","",calculator!V33) ->  | H32: =IF(C32="","",$H$5*calculator!H33) ->  | I32: =IF(C32="","",H32*calculator!F29) -> 
A33: 7 | B33: =IF(ISNA(VLOOKUP(calculator!A34,grassy,2,FALSE))," ",VLOOKUP(calculator!A34,grassy,2,FALSE)) ->  | C33: =IF(ISBLANK(calculator!A34),"",calculator!A34) ->  | D33: =IF(C33="","",calculator!R34) ->  | E33: =IF(C33="","",calculator!G34) ->  | F33: =IF(C33="","",calculator!K34) ->  | G33: =IF(C33="","",calculator!V34) ->  | H33: =IF(C33="","",$H$5*calculator!H34) ->  | I33: =IF(C33="","",H33*calculator!F30) -> 
A34: 8 | B34: =IF(ISNA(VLOOKUP(calculator!A35,grassy,2,FALSE))," ",VLOOKUP(calculator!A35,grassy,2,FALSE)) ->  | C34: =IF(ISBLANK(calculator!A35),"",calculator!A35) ->  | D34: =IF(C34="","",calculator!R35) ->  | E34: =IF(C34="","",calculator!G35) ->  | F34: =IF(C34="","",calculator!K35) ->  | G34: =IF(C34="","",calculator!V35) ->  | H34: =IF(C34="","",$H$5*calculator!H35) ->  | I34: =IF(C34="","",H34*calculator!F31) -> 
A35: 9 | B35: =IF(ISNA(VLOOKUP(calculator!A36,grassy,2,FALSE))," ",VLOOKUP(calculator!A36,grassy,2,FALSE)) ->  | C35: =IF(ISBLANK(calculator!A36),"",calculator!A36) ->  | D35: =IF(C35="","",calculator!R36) ->  | E35: =IF(C35="","",calculator!G36) ->  | F35: =IF(C35="","",calculator!K36) ->  | G35: =IF(C35="","",calculator!V36) ->  | H35: =IF(C35="","",$H$5*calculator!H36) ->  | I35: =IF(C35="","",H35*calculator!F32) -> 
I36: Total Cost
I37: =SUM(I11:I35) -> 0
B38: **Please be aware these are only estimated costs. Lots of seed vary from year to year and
B39: seed company prices may vary within a given year!
B41: Prices in seed catalog or seed company website may be in bulk.
B43: ***Always get your seed price quotes on a PLS basis, since this is
B44: how you are planning these seedings.
B46: Ordinarily, Grass seed is sold PLS and Wildflowers are sold in BULK
B47: Take these hints into consideration when ordering seed!
B49: Seeding rates based on a PLS basis, will insure that the same amount of viable seed per acre will be planted even though quality of
B50: different seed lots and total amount of material (bulk) seeded per acre may vary considerably.
B52: FOR EXAMPLE
B53: If you know the bulk lb price, but want to find the price per PLS lb:
B54: Divide the bulk lb price by the PLS percentage of that lot.
B55: For example, you know the price per bulk lb of a Coneflower Lot which has a PLS of 80.75%, is $70/bulk lb.
B56: 70 ÷ 0.8075 = 86.69
B57: This means that each PLS lb of this lot costs $86.69/PLS lb.
B59: For another seed company, for the same species is as follows:
B60: Price per bulk lb of coneflower lot which has a PLS of 55%, is $65/bulk lb.
B61: 65/.55 = $118.18
B62: This means that each PLS lb of this lot costs $118.18/PLS lb

Sheet Forbs_legumes
A1: Common name | B1: scientific name | C1: plant Type | D1: pollinator ranking | E1: Flower Time | F1: bloom color | G1: plant ht (ft) | H1: soil moisture | I1: sunlight needs | J1: ph | K1: Vegetative spread | L1: seeds/ lb* | M1: Cost (lb) ($) | N1: drainage | O1: other | P1: wetland indicator | Q1: State | R1: % of Mix | W1: # of seeds/sq ft @ 1 lb of seed/A
V2: *any
A3: yarrow | B3: Achillea millefolium | M3: 30 | Q3: any
A4: black bugbane | B4: Actaea racemosa | C4: P | D4: high | E4: early, mid | F4: white | G4: 3-6 | H4: medium, wet | I4: sun-part | K4: slow | L4: 500000 | M4: 300 | O4: blooms earlier than the others | P4: FACW | Q4: any, | V4: *CT | W4: =L4/43560 -> 11.47842057
A5: purple false foxglove | B5: Agalinis purpurea | C5: A | D5: high | E5: early, mid, late | F5: purple | G5: 1-2 | H5: medium, wet | I5: sun-part | L5: 12480000 | M5: 500 | N5: WD,MWDMSPD, PD | O5: high bee preference | P5: FACW | Q5: any, | V5: *MA | W5: 286.5013774
A6: lavender hysoop | B6: Agastache foeniculum | C6: P | D6: high | E6: mid, late | F6: blue-violet | G6: 3-5 | H6: dry, medium | I6: sun-part | K6: slow | L6: 1440000 | M6: 172 | N6: WD | O6: honey bee, bumble bee (N) | P6: FACU | Q6: any,mn,wv | S6: *early | T6: *dry | U6: *low | V6: *ME | W6: 33.05785124
A7: yellow giant hyssop | B7: Agastache nepetoides | C7: P | D7: high | E7: late | F7: yellow | G7: 3-8 | H7: dry, medium | I7: sun-part | L7: 1480000 | M7: 200 | P7: FACU | Q7: any,mn,wv | S7: *mid | T7: *med | U7: *med | V7: *MI | W7: 33.97612489
A8: purple giant hyssop | B8: Agastache scrophulariifolia | C8: P | D8: very high | E8: mid | F8: purple | G8: 2-6 | H8: med, wet | I8: full | J8: 6.5-7.0 | K8: n/a | L8: 1000000 | M8: 80 | N8: WD,MWD | O8: attractive to bees and butterflies,birds, RARE | P8: FACW | Q8: ny,any,pa,mn,wv | S8: *late | T8: *wet | U8: *high | V8: *NH | W8: 22.95684114
A9: leadplant | B9: Amorpha canescens | C9: P | D9: high | E9: early,mid | F9: purple | G9: 2-3 | H9: dry, medium | I9: sun-part | K9: slow | L9: 256000 | M9: 210 | N9: WD,MWD, SPW,PD | O9: legume | P9: UPL | Q9: any,mi,mn | V9: *NJ | W9: 5.876951331
A10: common bluestar | B10: Amsonia tabernaemontana | C10: P | D10: high | E10: early | F10: blue | G10: 2-4 | H10: medium, wet | I10: sun-part | L10: 363000 | N10: WD | O10: exotic looking flowers | P10: FACW | Q10: any, | V10: *NY | W10: 8.333333333
A11: purplestem angelica | B11: Angelica atropurpurea | C11: P | D11: high | E11: mid | F11: white | G11: 1-2 | H11: medium,wet | I11: sun | L11: 86400 | M11: 200 | O11: host for American painted lady caterpillar | P11: OBL | Q11: any, | R11: 1-2% of a mix | V11: *PA | W11: 1.983471074
A12: indian hemp | B12: Apocynum cannabinum | C12: P | D12: medium,low | E12: mid | F12: white | G12: 2-6 | H12: dry, med | I12: full | J12: 4.5-7 | K12: high | L12: 500000 | M12: 280 | N12: WD,MWD,SPD | O12: extensive root system, fairly aggressive | P12: FAC | Q12: ny,any | R12: 1-2% of a mix | V12: *RI | W12: 11.47842057
A13: red columbine | B13: Aquilegia canadensis | C13: P | D13: high | E13: early | F13: red | G13: 1-2 | H13: dry, medium | I13: sun-part shade | K13: slow | L13: 400000 | M13: 480 | N13: WD | O13: deer resistant, native bees, humming birds | P13: FACU | Q13: VA,ANY,ny | R13: 1-5% of a mix | V13: *VT | W13: 9.182736455
A14: common milkweed | B14: Asclepias syriaca | C14: P | D14: high | E14: early, mid | F14: pink purple | G14: 3-4 | H14: dry, med | I14: full to partial | J14: 5.6-7.5 | K14: high | L14: 68000 | M14: 180 | N14: WD,MWD | O14: attracts monarchs; cuttings will bloom in first year, seeds may not | P14: UPL | Q14: ny,any,pa,md,mi,mn | R14: 1-10% | W14: 1.561065197
A15: swamp milkweed | B15: Asclepias incarnata | C15: P | D15: high | E15: mid | F15: pink | G15: 2-3 | H15: wet | I15: full to partial | J15: 5-8 | K15: slow | L15: 75000 | M15: 280 | N15: SPD,PD | O15: good for wetlands; great for monarch; high deer resistant | P15: OBL | Q15: VA,ANY,ny,pa,mi,mn | R15: 1-10% | W15: 1.721763085
A16: purple milkweed | B16: Asclepias purpurascens | C16: P | D16: high | E16: mid | F16: purple | G16: 2 -3 | H16: dry, medium | I16: sun-part | K16: mod | L16: 72000 | M16: 800 | O16: Attracts butterflies, hummingbirds | P16: FACU | Q16: any, | W16: 1.652892562
A17: prairie milkweed | B17: Asclepias sullivanti | Q17: any,mi
A18: butterfly milkweed | B18: Asclepias tuberosa | C18: P | D18: high | E18: mid,late | F18: orange | G18: 1-2 | H18: dry,medium | I18: full to partial | J18: 4.8-6.8 | K18: none | L18: 70000 | M18: 320 | N18: WD,MWD | O18: attractive to monarchs | P18: FAC- | Q18: VA,ANY,ny,nh,pa,me,md,mi,mn | R18: 1-10% | W18: =L18/43560 -> 1.60697888
A19: whorled milkweed | B19: Asclepias verticillata | C19: P | D19: high | E19: mid | F19: white | G19: 1-2 | H19: dry | I19: sun-part | K19: mod, rapid | L19: 176000 | M19: 700 | P19: UPL | Q19: any, | W19: =L19/43560 -> 4.04040404
A20: heart-lvd aster | B20: Aster cordifolius | Q20: VA,ANY
A21: Canada milkvetch | B21: Astragalus tuberosa | Q21: mn
A22: white wild indigo | B22: Baptisia alba | C22: P | D22: high | E22: early | F22: white/yellow | G22: 2-3 | H22: dry, medium | I22: sun-part | K22: slow | L22: 30000 | M22: 180 | O22: larval food for wild indigo duskywing | P22: FACU | Q22: any, | R22: 1-5% | W22: =L22/43560 -> 0.6887052342
A23: blue wild indigo | B23: Baptisia australis | C23: P | D23: medium | E23: early | F23: purple/ blue | G23: 3-5 | H23: dry, med | I23: full | J23: 5.8-7.2 | K23: none | L23: 35000 | M23: 160 | N23: WD,MWD | O23: native legume, great for mixes, bushy habit, good ground cover | P23: FAC- | Q23: nh,VA,ANY,ny,pa,md | R23: 1-10% | W23: 0.8034894399
A24: wild indigo | B24: Baptisia tinctoria | C24: P | D24: medium | E24: early, mid | F24: yellow | G24: 1-3 | H24: dry, med | I24: full | J24: 5.8-7 | K24: none | L24: 300000 | M24: 440 | O24: very low maintenance | P24: FAC | Q24: nh,any,ny | R24: 1-5% | W24: 6.887052342
A25: bearded beggarticks | B25: Bidens aristosa | C25: P | D25: mediu | E25: late | F25: yellow | G25: 3 | H25: med, wet | J25: 5-7 | L25: 130000 | M25: 18 | N25: MWD,SPD | P25: FACW | Q25: ny,any | R25: 1-10% | W25: 2.984389348
A26: nodding beggartick | B26: Bidens cernua | C26: A | D26: high | E26: mid, late | F26: yellow | G26: 2-3 | H26: wet | I26: sun-part | J26: 5.1-7 | L26: 130000 | M26: 240 | N26: MWD,SPD,PD | O26: 2-15% in a mix | P26: OBL | Q26: VA,ANY | R26: 1-5% | W26: 2.984389348
A27: marsh marigold | B27: Caltha palustris | C27: P | D27: high | E27: early | F27: yellow | G27: 1-2 | H27: med, wet | I27: sun, part shade | J27: 6-8 | K27: slow | L27: 416000 | M27: 600 | O27: .5-5% in a mix | P27: OBL | Q27: any,md,mi | W27: 9.550045914
A28: bluebell bellflower | B28: Campanula rotundifolia | C28: P | D28: high | E28: mid,late | F28: blue-violet | G28: 1-2 | H28: dry, medium | I28: sun-part | L28: 14400000 | M28: 800 | P28: FACU | Q28: any, | W28: 330.5785124
A29: American bellflower | B29: Campanulastrum americanum | C29: A | D29: medium | E29: mid, late | F29: blue | G29: 2-6 | H29: dry, medium | I29: sun-part | L29: 12800000 | M29: 600 | O29: very small seed | P29: FAC | Q29: any, | W29: 293.8475666
A30: New Jersey tea | B30: Ceanothus americanus | C30: Sh | D30: high | E30: early | F30: blueish-white | G30: 3-4 | H30: dry, medium | I30: sun-shade | J30: 4.6-6.5 | K30: slow | L30: 116800 | M30: 700 | P30: UPL | Q30: any, | R30: 0.01 | W30: 2.681359045
A31: partridge pea | B31: Chamaecrista fasciculata | C31: P | D31: high | E31: early, mid, late | F31: yellow | G31: 1-3 | H31: dry, med | I31: full to partial | J31: 5.5-7.5 | K31: none | L31: 65000 | M31: 10 | N31: WD,MWD | O31: good for wildlife and erosion control; legume | P31: FACU | Q31: VA,ANY,ny,pa,md,mn | R31: 1-10% | W31: 1.492194674
A32: white turtlehead | B32: Chelone glabra | C32: P | D32: high | E32: mid | F32: White | G32: 2-4 | H32: med, wet | I32: full-shade | J32: 5.1-6.5 | K32: slow | L32: 1560000 | M32: 600 | N32: SPD,PD | O32: good for shady woods | P32: OBL | Q32: VA,ANY,ny,nh, | R32: 1-2% | W32: 35.81267218
A33: blue chicory | B33: Cichorium intybus | C33: P | D33: very low | E33: mid, late | F33: purple | G33: 1-4 | H33: dry, med | I33: full to partial | J33: 6.0-7.5 | K33: none | L33: 426400 | M33: 16 | O33: roadsides, open fields | P33: FACU | Q33: ny,any | R33: 1-15% | W33: 9.788797062
A34: black cohosh | B34: Cimicifuga racemosa | M34: 360 | Q34: VA,ANY
A35: mistflower | B35: Conoclinium coelestinum | C35: P | D35: high | E35: mid,late | F35: purple | G35: 2-3 | H35: dry,medium | I35: sun-shade | J35: 5.5-7.5 | L35: 2000000 | M35: 80 | O35: Great late season butterfly plant | P35: FAC | Q35: any,pa | R35: 1-5% | W35: =L35/43560 -> 45.91368228
A36: lanced-leaved coreopsis | B36: Coreopsis lanceolata | C36: P | D36: low | E36: early, mid | F36: yellow | G36: 1-3 | H36: dry, med | I36: full | J36: 6.0-7.0 | K36: none | L36: 210000 | M36: 14 | N36: WD,MWD | O36: can tolerate regular mowing | P36: FACU | Q36: any,ny,mi | R36: 1-10% | W36: =L36/43560 -> 4.820936639
A37: stiff tickseed | B37: Coreopsis palmata | Q37: mn
A38: plains coreopsis | B38: Coreopsis tinctoria | C38: P | D38: low | E38: early, mid, late | F38: yellow | G38: 1-2 | H38: dry, med | I38: full | J38: 5.2-7.8 | K38: none | L38: 3222222 | M38: 16 | N38: WD,MWD,SPD | O38: flowers in short period of time, may become invasive | P38: FACU | Q38: VA,ANY,ny,md | R38: 1-15% | W38: =L38/43560 -> 73.97203857
A39: tall tickseed | B39: Coreopsis tripteris | C39: P | D39: high | E39: mid, late | F39: yellow | G39: 3-6 | H39: medium | I39: sun-part | K39: mod | L39: 200000 | M39: 300 | N39: WD,MWD | O39: prolific seeder | P39: FAC | Q39: VA,ANY,ny | R39: 1-5% | W39: 4.591368228
A40: cosmos | B40: Cosmos bipinnatus | C40: A | D40: high | E40: mid, late | F40: pink/white | G40: 2-4 | H40: dry,medium | I40: sun, part sun | L40: 70000 | M40: 12 | N40: WD | P40: FAC | Q40: any | R40: 1-15% | W40: 1.60697888
A41: Illinios bundleflower | B41: Desmanthus illinoensis | C41: P | D41: high | E41: mid | F41: white | G41: 2-4 | H41: dry, med | I41: full | J41: 5-8 | L41: 120000 | M41: 30 | P41: FACU | Q41: any,mn | R41: 1-15% | W41: 2.754820937
A42: showy tick trefoil | B42: Desmodium canadense | C42: P | D42: medium,low | E42: mid | F42: pink/ purple | G42: 2-6 | H42: dry, med | I42: full to partial | J42: 5.6-6.5 | K42: n/a | L42: 81000 | M42: 80 | N42: SPD, WD | O42: legume, can become invasive | P42: FAC | Q42: VA,ANY,ny,md,mn | R42: 1-10% | W42: 1.859504132
A43: flat top white aster | B43: Doellingeria umbellata | C43: P | D43: medium,low | E43: late | F43: white | G43: 3-4 | H43: med, wet | I43: full | J43: 5.6-7.5 | K43: n/a | L43: 1200000 | M43: 200 | N43: WD,MWDMSPD, PD | O43: host to pearl crescent, and silvery checkerspot | P43: FACW | Q43: ny,any,md | R43: 1-5% | W43: 27.54820937
A44: pale purple coneflower | B44: Echinacea pallida | C44: P | D44: high | E44: mid | F44: purple | G44: 2-4 | H44: dry, medium | I44: sun, part shade | J44: 6.5-7.2 | K44: slow | L44: 83200 | M44: 72 | N44: WD,MWD | O44: honey beesm native bees (n); goldfinches | P44: UPL | Q44: any | R44: 1-15% | W44: 1.910009183
A45: purple coneflower | B45: Echinacea purpurea | C45: P | D45: high | E45: mid, late | F45: purple | G45: .5-2 | H45: dry, med | I45: full to partial | J45: 6.5-7.2 | K45: mod | L45: 115000 | M45: 28 | N45: WD-MWD | O45: easy to grow | P45: FAC | Q45: ny,any,nh,me,mi,mn | R45: 1-15% | W45: 2.640036731
A46: rattlesnake master | B46: Eryngium yuccifolium | C46: P | D46: high | E46: mid, late | F46: white | G46: 3 | H46: medium | I46: sun | J46: 6.5-7.5 | L46: 170000 | M46: 120 | N46: WD,MWD,SPD,PD | P46: FAC | Q46: any,mi | R46: 1-5% | W46: 3.902662994
A47: spotted joe pye weed | B47: Eupatoriadelphus maculatus | C47: P | D47: high | E47: mid | F47: pink-purple | G47: 2-7 | H47: med, wet | I47: full to partial | J47: 5.5-7 | K47: slow | L47: 1500000 | M47: 240 | N47: SPD,PD | O47: attracts butterflies | P47: FACW | Q47: VA,ANY,ny,md,mi,mn | R47: 1-10% | W47: 34.43526171
A48: Joe-pyeweed | B48: Eupatorium fistulosum | M48: 228 | Q48: any,pa
A49: boneset | B49: Eupatorium perfoliatum | C49: P | D49: high | E49: mid, late | F49: white | G49: 3-5 | H49: med, wet | I49: full to partial | J49: 6.1-7.8 | K49: n/a | L49: 2880000 | M49: 220 | N49: SPD,PD | O49: from seed, flowers in 2nd to 3rd year. may attract pests | P49: FACW | Q49: VA,ANY,ny,nh,pa,mi,mn | R49: 1-10% | W49: =L49/43560 -> 66.11570248
A50: sweetscented joepyeweed | B50: Eupatorium purpureum | C50: P | D50: high | E50: mid summer-fall | F50: pink-purple | G50: 2-6 | H50: dry, medium | I50: sun-shade | K50: slow | L50: 768000 | M50: 240 | O50: butterflies and other insects | P50: FAC | Q50: any | R50: 1-5% | W50: =L50/43560 -> 17.63085399
A51: bigleaf aster | B51: Eurybia macrophylla | C51: P | D51: medium,low | E51: late | F51: purple | G51: 2-5 | H51: dry | I51: full-shade | J51: 4.9-6.9 | K51: mod | L51: 800000 | M51: 220 | O51: provides wildlife habitat, can tolerate some shade | P51: UPL | Q51: any | R51: 1-5% | W51: =L51/43560 -> 18.36547291
A52: grass-leaved goldenrod | B52: Euthamia graminifolia | C52: P | D52: low | E52: late | F52: yellow | G52: 3-6 | H52: dry, med | I52: full | J52: n/a | K52: fast | L52: 5600000 | M52: 400 | N52: SPD, MWD | O52: food and cover for wildlife | P52: FAC | Q52: ny,any | R52: 1-2% | W52: =L52/43560 -> 128.5583104
A53: Buckwheat | B53: Fagopyrum esculentum | Q53: any
A54: blanketflower | B54: Gaillardia aristata | C54: P | D54: high | E54: ealy,mid,late | F54: orange | G54: 1-1.5 | H54: dry, medium | I54: full | J54: 5.5-7.9 | L54: 200000 | M54: 32 | O54: honey bees, native bees (n/p) | P54: FACU | Q54: any | R54: 1-15% | W54: =L54/43560 -> 4.591368228
A55: bottle gentian | B55: Gentiana andrewsii | Q55: any,mn
A56: bottle gentian | B56: Gentiana clausa | C56: P | D56: high | E56: late | F56: purple | G56: 1 | H56: dry | I56: full-part | J56: 5.8-7.2 | L56: 2500000 | M56: 400 | N56: WD,MWD,SPD | P56: FACW | Q56: any | R56: 1-2% | W56: =L56/43560 -> 57.39210285
A57: cream gentian | B57: Gentiana flava | Q57: mn
A58: spotted geranium | B58: Geranium maculatum | C58: P | D58: high | E58: early | F58: purple | G58: 2 | H58: dry, medium | I58: sun, part sun, shade | J58: 5.5-8.5 | L58: 800000 | M58: 800 | P58: FACU | Q58: nh,any,me | W58: =L58/43560 -> 18.36547291
A59: rough avens | B59: Geum laciniatum | C59: P | D59: high | E59: early | F59: white | G59: 3 | H59: med | I59: sun-part | J59: 5-7 | L59: 400000 | M59: 160 | N59: WD,MWD | P59: FACW | Q59: any | W59: =L59/43560 -> 9.182736455
A60: common sneezeweed | B60: Helenium autumnale | C60: P | D60: high | E60: mid, late | F60: yellow | G60: 2-5 | H60: med, wet | I60: full | J60: 4.0-7.5 | K60: none | L60: 2000000 | M60: 80 | N60: WD,MWD,SPD | O60: attracts butterflies, flowers late | P60: FACW | Q60: VA,ANY,ny,nh,,me,mn | R60: 1-5% | W60: =L60/43560 -> 45.91368228
A61: narrow-lvd sunflower | B61: Helianthus angustufolius | M61: 60 | Q61: VA,ANY
A62: ten-petaled sunflower | B62: Helianthus decapetalus | Q62: VA,ANY
A63: giant sunflower | B63: Helianthus giganteus | C63: P | D63: medium | E63: mid,late | F63: yellow | G63: 3-10 | H63: dry, med | I63: full | J63: 6.1-7.8 | K63: none | L63: 160000 | M63: 300 | N63: WD,MWD | O63: large plant, small flowers | P63: FACW | Q63: any,nh,ny,mn | R63: 1-2% | W63: =L63/43560 -> 3.673094582
A64: Maximilian sunflower | B64: Helianthus maximiliani | C64: P | D64: high | E64: late | F64: yellow | G64: 6-9 | H64: dry, med | I64: full | J64: 6-8 | L64: 190000 | M64: 36 | N64: WD,MWD | P64: UPL | Q64: mi,any | R64: 3-15% | W64: =L64/43560 -> 4.361799816
A65: ashy sunflower | B65: Helianthus mollis | C65: P | D65: medium | E65: mid, late | F65: yellow | G65: 2-6 | H65: dry | I65: full | J65: 5.7-8.0 | K65: high | L65: 125000 | M65: 180 | O65: covered with hairs | P65: UPL | Q65: any | W65: =L65/43560 -> 2.869605142
A66: oxeye sunflower | B66: Heliopsis helianthoides | C66: P | D66: low | E66: mid | F66: yellow | G66: 2-5 | H66: dry, med | I66: full to partial | J66: 6.1-7.8 | K66: n/a | L66: 103900 | M66: 48 | N66: MWD, ED | P66: FAC | Q66: VA,ANY,ny,md,mi,mn | R66: 1-10% | W66: =L66/43560 -> 2.385215794
A67: Eastern rose mallow | B67: Hibiscus moscheutos | M67: 180 | Q67: VA,ANY
A68: Virginia waterleaf | B68: Hydrophyllum virginianum | Q68: nh,any
A69: St Johnswort | B69: Hypericum perforatum | C69: P | D69: low | E69: mid, late | F69: yellow | G69: 1-3 | H69: dry | I69: partial | J69: 5.1-7.5 | K69: slow | L69: 1800000 | M69: 80 | N69: WD,MWD,SPD | P69: UPL | Q69: any,pa | R69: 1-5% | W69: =L69/43560 -> 41.32231405
A70: roundheaded bushclover | B70: Lespedeza capitata | C70: P | D70: very low | E70: mid | F70: white | G70: 2-4 | H70: dry, med | I70: full | J70: 5.7-8.2 | K70: none | L70: 159000 | M70: 180 | N70: MWD, ED | O70: provides food for birds and small wildlife | P70: FACU | Q70: VA,ANY,ny,mi,mn | R70: 1-5% | W70: =L70/43560 -> 3.650137741
A71: rough blazing star | B71: Liatris aspera | C71: P | D71: high | E71: mid | F71: purple | G71: 3-5 | H71: dry, med | I71: full | J71: 6.6-7.5 | K71: slow | L71: 256000 | M71: 400 | N71: WD,MWD | O71: scarify seed helps, shortest and last to bloom of liatris | P71: FAC | Q71: any,mi,ny,mn | R71: 1-5% | W71: =L71/43560 -> 5.876951331
A72: dotted blazing star | B72: Liatris punctata | Q72: mn
A73: prairie blazing star | B73: Liatris pycnostachya | C73: P | D73: high | E73: mid, late | F73: purple | G73: 4 | H73: med | I73: full | J73: 6.5-7.5 | K73: slow | L73: 176000 | M73: 225 | O73: honey bees, bumble bees (n/p) | P73: FAC | Q73: any,mn | R73: 1-10% | W73: =L73/43560 -> 4.04040404
A74: dense blazing star | B74: Liatris spicata | C74: P | D74: high | E74: early,mid | F74: purple | G74: 3-4 | H74: med, wet | I74: full to partial | J74: 5.6-7.5 | K74: slow | L74: 125000 | M74: 180 | N74: WD,MWD | O74: good for rain gardens | P74: FACW | Q74: VA,ANY,pa,ny | R74: 1-10% | W74: 2.869605142
A75: perennial blue flax | B75: Linum perenne | C75: P | D75: high | E75: early, late | F75: blue | G75: 2-3 | H75: dry, med | I75: full to partial | J75: 6.1-7.8 | K75: slow | L75: 295000 | M75: 20 | O75: not native and short lived | P75: FAC | Q75: VA,ANY,pa | R75: 1-15% | W75: 6.772268136
A76: cardinal flower | B76: Lobelia cardinalis | C76: P | D76: high | E76: mid, late | F76: red | G76: 1-6 | H76: med, wet | I76: full to partial | J76: 5.8-7.8 | K76: none | L76: 7320000 | M76: 560 | N76: SPD,PD | O76: provides nectar for bees and hummingbirds, butterflies | P76: OBL | Q76: VA,ANY,ny,pa,mi | R76: 1-2% | W76: 168.0440771
A77: great blue lobelia | B77: Lobelia siphilitica | C77: P | D77: very high | E77: mid, late | F77: purple | G77: 2-5 | H77: med, wet | I77: full to partial | J77: 6.0-7.5 | K77: n/a | L77: 6400000 | M77: 280 | N77: SPD,PD | P77: FACW | Q77: VA,ANY,ny,pa,mi,mn | R77: 1-2% | W77: 146.9237833
A78: palespike lobelia | B78: Lobelia spicata | C78: P | D78: high | E78: early | F78: purple | G78: 2-3 | H78: dry, medium | I78: sun-part shade | L78: 14400000 | M78: 24 | N78: WD | O78: humming birds | P78: FAC | Q78: any,nh | W78: 330.5785124
A79: lupine | B79: Lupinus perennis | C79: P | D79: high | E79: early | F79: blue | G79: 1-2 | H79: dry, med | I79: full to partial | J79: 4.6-7.2 | K79: none | L79: 18800 | M79: 200 | N79: MWD, ED | O79: provides food and habitat for butterflies, not for restoration | P79: FACU | Q79: md,nh,any,pa,mi | R79: 1-20% | W79: 0.4315886134
A80: bigleaf lupine | B80: Lupinus polyphyllus | C80: P | D80: high | E80: early,mid | F80: purple | G80: 2-3 | H80: dry | I80: full-part | L80: 75000 | M80: 24 | P80: FACU | Q80: any | R80: 1-10% | W80: 1.721763085
A81: alfalfa | B81: Medicago sativa | Q81: any
A82: yellow sweet clover | B82: Melilotus officinalis | M82: 2.25 | Q82: any,pa
A83: wild mint | B83: Mentha arvensis | Q83: any,me
A84: Alleghany monkey flower | B84: Mimulus ringens | C84: P | D84: medium,low | E84: mid | F84: light purple | G84: 1-3 | H84: medium, wet | I84: full to partial | J84: 5.6-7.5 | K84: n/a | L84: 36800000 | M84: 180 | N84: SPD,PD | O84: provides cover for wildlife | P84: OBL | Q84: VA,ANY,pa | R84: 1-5% | W84: =L84/43560 -> 844.8117539
A85: bee balm | B85: Monarda didyma | C85: P | D85: high | E85: mid | F85: red | G85: 2-4 | H85: wet, medium | I85: sun-part | K85: mod | L85: 800000 | M85: 400 | N85: WD,MWD, SPD | O85: Attracts hummingbirds and great nectar source for butterflies | P85: FAC | Q85: VA,ANY,pa | W85: 18.36547291
A86: wild bergamot | B86: Monarda fistulosa | C86: P | D86: very high | E86: early, mid | F86: purple/ dark pink | G86: 2-5 | H86: dry, med | I86: full to partial | J86: 6-8 | K86: mod | L86: 1200000 | M86: 240 | N86: WD,MWD | O86: provides nectar for bees and hummingbirds, butterflies | P86: FACU | Q86: VA,ANY,ny,nh,me,mi,mn | R86: 1-3% | W86: 27.54820937
A87: purple bergamot | B87: Monarda media | C87: P | D87: very high | E87: early | F87: purple | G87: 2-4 | H87: med | I87: full to partial | J87: 6.0-7.8 | K87: mod | L87: 1120000 | M87: 240 | O87: attracts bees and butterflies | P87: FAC | Q87: any,ny,md | R87: 1-3% | W87: 25.71166208
A88: spotted beebalm | B88: Monarda punctata | C88: BI | D88: high | E88: early, mid | F88: pink/ white | G88: .5-3 | H88: dry | I88: full | J88: 6.8-7.2 | K88: mod | L88: 1440000 | M88: 180 | O88: sensitive to overwatering | P88: UPL | Q88: any,ny,nh,pa | R88: 1-5% | W88: 33.05785124
A89: evening primrose | B89: Oenothera biennis | C89: BI | D89: medium | E89: mid,late | F89: yellow | G89: 4-5 | H89: dry, med | I89: full | J89: 6.1-7.8 | K89: none | L89: 1376000 | M89: 32 | O89: may become weedy or invasive | P89: FACU | Q89: any,ny,mn | R89: 1-2% | W89: 31.58861341
A90: Riddell's Goldenrod | B90: Oligoneuron riddellii | C90: P | D90: high | E90: late | F90: yellow | G90: 2-4 | H90: wet | I90: full | J90: 7.0-8.0 | K90: some | L90: 1424000 | M90: 200 | O90: listed as species at risk, Not Native to NY | P90: OBL | Q90: any | R90: 1-5% | W90: 32.69054178
A91: stiff goldenrod | B91: Oligoneuron rigidum | C91: P | D91: high | E91: late | F91: yellow | G91: 4 | H91: dry, med | I91: full-part | J91: 5.5-7.5 | K91: rapid | L91: 1000000 | M91: 220 | P91: FACU | Q91: any,md,mi | R91: 1-8% | W91: 22.95684114
A92: eastern grey beardtongue | B92: Penstemon canescens | C92: P | D92: high | E92: early | F92: purple | G92: 1-2 | H92: dry | I92: sun-part | L92: 1000000 | M92: 400 | N92: WD | O92: early season color | P92: FAC | Q92: any | R92: 1-5% | W92: 22.95684114
A93: tall white beard tongue | B93: Penstemon digitalis | C93: P | D93: high | E93: early | F93: white | G93: 2-5 | H93: dry, med | I93: full to partial | J93: 5.5-7 | K93: mod | L93: 2000000 | M93: 108 | N93: WD,MWD | O93: a durable early plant | P93: FAC | Q93: nh,any,ny,pa,me,md | R93: 1-5% | W93: 45.91368228
A94: showy penstemon | B94: Penstemon grandifloris | Q94: mn
A95: hairy beardtongue | B95: Penstemon hirsutus | C95: P | D95: high | E95: early,mid | F95: Pale violet | G95: 2-3 | H95: dry, med | I95: full-shade | J95: 6.0-7.5 | K95: none | L95: 3250000 | M95: 240 | N95: WD,MWD | P95: FACU | Q95: mi,nh,ny,any | R95: 1-5% | W95: =L95/43560 -> 74.6097337
A96: eastern smooth beardtongue | B96: Penstemon laevigatus | C96: P | D96: high | E96: early | F96: purple/white | G96: 2-4 | H96: dry | I96: full-shade | L96: 1500000 | M96: 240 | N96: WD,MWD | O96: meadows woods roadsides | P96: FACU | Q96: VA,ANY | R96: 1-6% | W96: =L96/43560 -> 34.43526171
A97: purple praire clover | B97: Petalostemon purpurum
A98: Phacelia | B98: Phacelia tanaecitifolia | Q98: any
A99: fall phlox | B99: Phlox paniculata | Q99: VA,ANY
A100: obedient plant | B100: Physostegia virginiana | C100: P | D100: high | E100: late | F100: pink/white | G100: 2 - 4 | H100: medium, wet | I100: Sun/part shade | K100: rapid | L100: 176000 | M100: 640 | O100: deer resistant, Attracts fall migrating hummingbirds | P100: FACW | Q100: any,nh | R100: 1-2% | W100: =L100/43560 -> 4.04040404
A101: hoary mountain mint | B101: Pycnanthemum incanum | Q101: VA,ANY
A102: narrow-lvd mountain mint | B102: Pycnanthemum tenuifolium | Q102: VA,ANY
A103: Virginia mountain mint | B103: Pycnanthemum virginianum | C103: P | D103: high | E103: mid, late | F103: white | G103: 2-3 | H103: med, wet | I103: full to partial | J103: 5.0-7.5 | K103: slow | L103: 3840000 | M103: 480 | N103: WD,MWD | O103: very fragrant | P103: FACW | Q103: VA,ANY,ny,nh,pa,me,mn | R103: 1-2% | W103: =L103/43560 -> 88.15426997
A104: gray headed coneflower | B104: Ratibida pinnata | C104: P | D104: medium | E104: mid | F104: yellow | G104: 3-5 | H104: dry, med | I104: full to partial | J104: 5.6-6.8 | K104: none | L104: 550000 | M104: 60 | N104: WD,MWD | P104: FAC | Q104: any,ny,mi,mn | R104: 1-10% | W104: 12.62626263
A105: orange coneflower | B105: Rudbeckia fulgida | C105: P | D105: high | E105: mid, late | F105: yellow | G105: 2 - 4 | H105: medium,wet | I105: sun, part sun | L105: 496000 | M105: 248 | O105: Drought tolerant, birds eat seeds | P105: OBL | Q105: any | R105: 1-5% | W105: 11.3865932
A106: black-eyed susan | B106: Rudbeckia hirta | C106: BI | D106: low | E106: early, mid, late | F106: yellow/ orange | G106: 2-3 | H106: dry, med | I106: full to partial | J106: 6-7 | K106: none | L106: 1500000 | M106: 24 | N106: SPD, WD | O106: food an cover for birds | P106: FACU | Q106: VA,ANY,ny,md,mi,mn | R106: 1-5% | W106: 34.43526171
A107: cutleaf coneflower | B107: Rudbeckia lacinata | C107: P | D107: high | E107: mid | F107: yellow | G107: 3-6 | H107: mdium, medium | I107: sun-part | K107: slow | L107: 240000 | M107: 200 | O107: honey bees, native bees (n/p), goldfinches, deer resistanat | P107: FACU | Q107: any,me | W107: 5.509641873
A108: browneyed Susan | B108: Rudbeckia triloba | C108: P | D108: high | E108: late | F108: yellow | G108: 1-3 | H108: dry,medium | I108: sun-part | L108: 536000 | M108: 80 | N108: WD.MWD | O108: native bees, bumble bees (n), goldfinches | P108: FACU | Q108: any | R108: 1-5% | W108: 12.30486685
A109: wild senna | B109: Senna hebecarpa | C109: P | D109: medium | E109: mid | F109: yellow | G109: 4-6 | H109: dry, med | I109: full to partial | J109: 6.5-7.5 | K109: n/a | L109: 22680 | M109: 18 | O109: short flowering legumes | P109: FACW | Q109: ny,any,md | R109: 1-10% | W109: 0.520661157
A110: blue-eyed grass | B110: Sisyrinchium angustifolium | C110: P | D110: high | E110: early | F110: blue | G110: 1 | H110: dry,medium | I110: sun-part | L110: 480000 | M110: 200 | N110: WD,SPW,PD | P110: FAC | Q110: any | W110: 11.01928375
A111: bluestem goldenrod | B111: Solidago caesia | C111: P | D111: high | E111: late | F111: yellow | G111: 1-3 | H111: dry, med | I111: full to partial | J111: 5.5-7 | K111: slow | L111: 4000000 | M111: 450 | N111: WD,MWD | O111: wood edges | P111: FACU | Q111: ny,any | R111: 1-2% | W111: 91.82736455
A112: zigzag goldenrod | B112: Solidago flexicaulis | C112: P | D112: high | E112: late | F112: yellow | G112: 1-4 | H112: dry, medium | I112: sun-shade | L112: 1344000 | M112: 900 | O112: moderate spreader | P112: FACU | Q112: any | W112: 30.85399449
A113: early goldenrod | B113: Solidago juncea | C113: P | D113: high | E113: mid, late | F113: yellow | G113: 3-6 | H113: dry | I113: full to partial | J113: 5.0-7.0 | K113: n/a | L113: 2000000 | M113: 220 | O113: first goldenrod of the season to bloom | P113: UPL | Q113: ny,any,nh | R113: 1-5% | W113: 45.91368228
A114: gray goldenrod | B114: Solidago nemoralis | C114: P | D114: very high | E114: late | F114: yellow | G114: .5-2.5 | H114: dry | I114: full | J114: 6.5-7.5 | K114: rapid | L114: 1008000 | M114: 260 | N114: WD,MWD | O114: survives in low fertility soil, provides nectar for butterflies | P114: UPL | Q114: ny,any,md | R114: 1-5% | W114: 23.14049587
A115: rough leaved goldenrod | B115: Solidago patula | C115: P | D115: high | E115: late | F115: yellow | G115: 4-5 | H115: wet | I115: full-partial | J115: 4.5-7 | K115: rapid | L115: 900000 | M115: 400 | N115: SPD,PD | P115: OBL | Q115: ny,any | R115: 1-5% | W115: 20.66115702
A116: wrinkleleaf goldenrod | B116: Solidago rugosa | C116: P | D116: high | E116: late | F116: yellow | G116: 2-6 | H116: dry,medium | I116: sun-part | J116: 5-7.5 | K116: mod | L116: 1480000 | M116: 320 | N116: WD,MWD | O116: "fireworks" will not spread | P116: FAC | Q116: VA,ANY,ny | R116: 1-5% | W116: 33.97612489
A117: showy goldenrod | B117: Solidago speciosa | C117: P | D117: high | E117: late | F117: yellow | G117: 1-5 | H117: dry | I117: full to partial | J117: 5.1-7.5 | K117: n/a | L117: 1600000 | M117: 160 | N117: WD,MWD | O117: very attractive to butterflies, bees, ants, beetles | P117: UPL | Q117: VA,ANY,ny,nh,mn, | R117: 1-8% | W117: 36.73094582
A118: common blue wood aster | B118: Symphyotrichum cordifolium | C118: P | D118: high | E118: late | F118: blue-purple | G118: 2-3 | H118: dry, medium | I118: part sun, shade | J118: 5.7-7.5 | K118: mod | L118: 2000000 | M118: 260 | N118: MWD,WD | O118: abundant seed producer,in woodland clearings | P118: UPL | Q118: any | R118: 1-5% | W118: 45.91368228
A119: panicled aster | B119: Aster simplex | Q119: mn
A120: smooth blue aster | B120: Symphyotrichum laeve | C120: P | D120: high | E120: late | F120: blue/ purple | G120: 1-3 | H120: dry, med | I120: full | J120: 5.8-7.8 | K120: mod | L120: 1000000 | M120: 220 | N120: MWD,WD | O120: fiborous root system | P120: FACU | Q120: VA,ANY,ny,nh,md,mi,mn | R120: 1-8% | W120: =L120/43560 -> 22.95684114
A121: white panicle aster | B121: Symphyotrichum lanceolatum | C121: P | D121: high | E121: mid,late | F121: white | G121: 2-5 | H121: medium | I121: sun-part | K121: mid | L121: 2256000 | N121: WD | O121: 1-5% in a mix | P121: FACW | Q121: any | W121: 51.79063361
A122: calico aster | B122: Symphyotrichum lateriflorum | C122: P | D122: high | E122: late | F122: white/ changng | G122: 1-5 | H122: dry, med | I122: full-shade | J122: 6.1-6.5 | K122: some | L122: 3200000 | M122: 260 | O122: found in forested areas, horizontal branches | P122: FAC | Q122: any,ny,nh,md | W122: 73.46189164
A123: New England aster | B123: Symphyotrichum novae-angliae | C123: P | D123: very high | E123: late | F123: purple | G123: 2-6 | H123: med, wet | I123: full to partial | J123: 5.6-7.5 | K123: n/a | L123: 1120000 | M123: 280 | N123: WD, MWD | O123: provides food and cover for wildlife and butterflies | P123: FACW | Q123: VA,ANY,ny,pa,me,md,mi,mn | R123: 2-8% | W123: 25.71166208
A124: New York aster | B124: Symphyotrichum novi-belgii | C124: P | D124: high | E124: late | F124: purple | G124: 4-5 | H124: med, wet | I124: full | J124: 5.5-7 | K124: mod | L124: 800000 | M124: 240 | N124: SPD,PD,MWD | O124: prone to mildew | P124: FACW | Q124: VA,ANY,ny,nh,pa,me | R124: 1-5% | W124: 18.36547291
A125: aromatic aster | B125: Symphyotrichum oblongifolium | C125: P | D125: high | E125: late | F125: violet | G125: 2-3 | H125: dry, medium | I125: sun | L125: 816000 | M125: 220 | N125: WD | O125: 1-5% in a mix | P125: UPL | Q125: any,md | R125: 1-5% | W125: 18.73278237
A126: zigzag aster | B126: Symphyotrichum prenanthoides | C126: P | D126: high | E126: late | F126: pink/ purple | G126: 2-4 | H126: dry, med | I126: partial to shade | J126: 5.5-7.2 | K126: mod | L126: 700000 | M126: 180 | N126: WD,MWD,SPD | O126: provides nectar for butterflies | P126: FAC | Q126: any,md | R126: 1-5% | W126: 16.0697888
A127: purplestem aster | B127: Symphyotrichum puniceum | C127: P | D127: high | E127: late | F127: violet | G127: 3-6 | H127: medium, wet | I127: sun | J127: 4.5-7.5 | K127: slow | L127: 1216000 | M127: 280 | N127: WD,MWD, SPW,PD | O127: nectar for butterflies | P127: OBL | Q127: any | R127: 1-5% | W127: 27.91551882
A128: Silky aster | Q128: mn
A129: Ohio spiderwort | B129: Tradescantia ohiensis | C129: P | D129: high | E129: early, mid | F129: purple | G129: 1-3 | H129: dry, med | I129: full to partial | J129: 6.6-7.5 | K129: n/a | L129: 128000 | M129: 160 | N129: WD,MWD, SPW,PD | O129: self seeds, can become invasive | P129: FACU | Q129: ny,any,md | W129: =L129/43560 -> 2.938475666
A130: zigzag spiderwort | B130: Tradescantia subaspera | C130: P | D130: high | E130: mid | F130: purple | G130: 2-3 | H130: med, wet | I130: partial | J130: 5-6-7.8 | K130: n/a | L130: 130000 | M130: 64 | N130: WD,MWD, SPW,PD | O130: bloom period fairly long. Pollinated by bees, sytphid flies | P130: FACW | Q130: ny,any | W130: =L130/43560 -> 2.984389348
A131: Virginia spiderwort | B131: Tradescantia virginiana | Q131: pa,nh,any,ny
A132: alsike clover | B132: Trifolium hybridum | C132: P | D132: high | E132: early,late | F132: pink-white | G132: 2-4 | H132: dry, med | I132: full | J132: 5.6-7.5 | K132: none | L132: 680000 | M132: 3 | N132: WD,MWD, SPW,PD | O132: introduced | P132: FACU | Q132: ny,any,pa,md | R132: 0.25 | W132: =L132/43560 -> 15.61065197
A133: crimson clover | B133: Trifolium incarnatum | M133: 2.5 | Q133: pa,any
A134: blue vervain | B134: Verbena hastata | C134: P | D134: medium | E134: early, mid | F134: purple | G134: 2-5 | H134: med, wet | I134: full to partial | J134: 5.6-7.5 | K134: n/a | L134: 1544000 | M134: 60 | N134: SPD, PD | O134: easily seeded | P134: FACW | Q134: VA,ANY,ny,pa,mi | R134: 1-10% | W134: =L134/43560 -> 35.44536272
A135: hoary vervain | B135: Verbena stricta | C135: P | D135: high | E135: mid | F135: purple | G135: 4-6 | H135: dry, med | I135: full | J135: 5.6-7.5 | K135: slow | L135: 1000000 | M135: 80 | O135: does not compete with vigorous grasses | P135: FACU | Q135: ny,any | R135: 1-10% | W135: 22.95684114
A136: white vervain | B136: Verbena urticifolia | C136: P | D136: medium | E136: early | F136: white | G136: 3-5 | H136: dry, med | I136: full to partial | J136: 6.6-7.5 | K136: n/a | L136: 480000 | M136: 120 | N136: SPD, WD | P136: FAC | Q136: ny,any | R136: 1-5% | W136: 11.01928375
A137: wingstem | B137: Verbesina alternifolia | C137: P | D137: medium,low | E137: mid, late | F137: yellow | G137: 3-8 | H137: med, wet | I137: full to partial | J137: n/a | K137: n/a | L137: 180000 | M137: 180 | N137: SPD, PD | O137: threatened in NYS | P137: FACW | Q137: ny,any,pa | R137: 1-5% | W137: 4.132231405
A138: NY ironweed | B138: Vernonia noveboracensis | C138: P | D138: high | E138: mid | F138: purple | G138: 4-6 | H138: med, wet | I138: full to partial | J138: 5.1-7.5 | K138: none | L138: 300000 | M138: 220 | O138: deer and rabbit resistance | P138: FACW | Q138: VA,ANY,ny | R138: 1-5% | W138: 6.887052342
A139: culver's root | B139: Veronicastrum virginicum | C139: P | D139: high | E139: early, mid | F139: white | G139: 2-6 | H139: dry, med | I139: full to partial | J139: 6.6-7.8 | K139: n/a | L139: 12400000 | M139: 640 | O139: attracts butterflies and bees | P139: FAC | Q139: ny,any,nh,mn | R139: 1-2% | W139: 284.6648301
A140: meadow zizia | B140: Zizia aptera | C140: P | D140: high | E140: early | F140: yellow | G140: 1-3 | H140: dry | I140: sun-part | L140: 176000 | M140: 230 | O140: endangered inCT, great for warerfowl | P140: FACU | Q140: any, | W140: 4.04040404
A141: golden alexanders | B141: Zizia aurea | C141: P | D141: high | E141: early | F141: yellow | G141: 1-2 | H141: dry, med | I141: full to partial | J141: 6.1-7.8 | K141: n/a | L141: 176000 | M141: 180 | N141: SPD, WD | O141: one of the earliest blooming natives | P141: FAC | Q141: ny,any,md,mn | R141: 1-5% | W141: 4.04040404
W142: =L142/43560 -> 0
W143: 0
W144: 0
W145: 0
W146: 0
W147: 0
W148: 0
W149: 0
W150: 0
W151: 0
W152: 0
W153: 0
W154: 0
W155: 0
W156: 0
W157: 0
W158: 0
W159: 0
W160: =L160/43560 -> 0
W161: 0
W162: 0
W163: 0
W164: 0
W165: 0
W166: 0
W167: 0
W168: 0
W169: 0
W170: 0
W171: 0
W172: 0
W173: 0
W174: 0
W175: 0
W176: 0
W177: 0
W178: 0
W179: 0
W180: 0
W181: 0
W182: 0
W183: 0
W184: 0
W185: 0
W186: 0
W187: 0
W188: 0
W189: 0
W190: 0
W191: 0
W192: 0
W193: 0
W194: 0
W195: 0
W196: 0
W197: 0
W198: 0
W199: 0
W200: 0
... 461 more rows

Sheet grass
A1: Common Name | B1: Scientific Name | C1: Cultivar Name | D1: plant type | E1: Cost/lb (PLS) | F1: ORIGIN | G1: Rooting Habit | H1: hts (ft) | I1: ph | J1: seeds/ lb* | K1: soil moisture | L1: FLOOD TOL. | M1: SHADE TOL. | N1: SALT TOL. | O1: DROUGHT TOLERANCE | P1: # of seeds/sq ft @ 1 lb of seed/A
A3: big bluestem | B3: Andropogon gerardii | C3: Niagara | D3: warm season grass | E3: 12 | F3: native | G3: bunch | H3: 4-6 | I3: 6-7.5 | J3: 150000 | K3: W-WM | L3: yes | M3: No | N3: Mod | O3: mod | P3: =J3/43560 -> 3.443526171
A4: broomsedge | B4: Andropogon virginicus | D4: warm season grass | E4: 84 | F4: Native | G4: bunch | H4: 3 | I4: 4.7-9 | J4: 800000 | K4: W-MW | L4: no | M4: No | N4: low | O4: High | P4: 18.36547291
A5: sideoats grama | B5: Bouteloua curtipendula | D5: warm season grass | E5: 20 | F5: Native | G5: bunch | H5: 3 | I5: 6-9 | J5: 150000 | L5: no | M5: No | N5: high | O5: high | P5: 3.443526171
A6: blue grama | B6: Bouteloua gracilis | D6: warm season grass | E6: 30 | F6: Native | G6: bunch | H6: 1 | I6: 6.6-8.4 | J6: 720000 | L6: No | M6: No | N6: Mod | O6: High | P6: 16.52892562
A7: bluejoint | B7: Calamagrostis canadensis | D7: cool season grass | E7: 232 | F7: native
A8: Emory's sedge | B8: Carex emoryi | D8: sedge | E8: 640 | F8: Native | G8: bunch | H8: 2 | J8: 848000 | L8: yes | M8: No | N8: low | O8: Low | P8: 19.46740129
A9: shallow sedge | B9: Carex lurida | D9: sedge | E9: 54 | F9: Native | G9: bunch | H9: 1 | I9: 3 | J9: 250000 | L9: Yes | M9: intermediate | N9: low | O9: Low | P9: 5.739210285
A10: PA sedge | B10: Carex pensyvanica | D10: sedge | E10: 30 | F10: native | G10: bunch | H10: 1.5 | J10: 864000 | L10: mod | M10: intermediate | O10: Low | P10: 19.83471074
A11: fox sedge | B11: Carex vulpinoidea | D11: sedge | E11: 16 | F11: Native | G11: bunch | H11: 3 | I11: 6.8-8.9 | J11: 19000 | L11: Yes | M11: intermediate | N11: none | O11: Low | P11: 0.4361799816
A12: Deertongue | B12: Dichanthelium clandestinum | C12: Tioga' | D12: warm season grass | E12: 16 | F12: Native | G12: bunch | H12: 2 | I12: 3.8-5.0 | J12: 350000 | K12: EXDR-SWPD | L12: Yes | M12: No | N12: Low | O12: High | P12: 8.034894399
A13: Canada Wildrye | B13: Elymus canadensis | D13: cool season grass | E13: 15 | F13: Native | G13: bunch | H13: 3-4 | I13: 5.0-8.0 | J13: 114000 | K13: WD-MWD | L13: Low | M13: Yes | N13: Mod | O13: Mod | P13: 2.61707989
A14: riparian wildrye | B14: Elymus riparius | C14: Pa Ecotype | D14: cool season grass | E14: 15 | F14: Native | G14: bunch | H14: 4 | I14: 4.5-7.2 | J14: 125000 | L14: mod | M14: Yes | N14: none | O14: Low | P14: 2.869605142
A15: Virginia Wildrye | B15: Elymus virginicus | C15: Pa Ecotype | D15: cool season grass | E15: 15 | F15: Native | G15: bunch | H15: 3-4 | I15: 5.0-7.0 | J15: 100000 | K15: MWD-PD | L15: Yes | M15: Yes | N15: Mod | O15: Low | P15: 2.295684114
A16: Hard Fescue | B16: Festuca brevipila | C16: Chariot' | D16: cool season grass | E16: 2.3 | F16: Introduced | G16: bunch | H16: 1 | I16: 4.5-7.5 | J16: 565000 | K16: EXDR-WD | L16: No | M16: Yes | N16: Low | O16: High | P16: 12.97061524
A17: Fescue, Sheep | B17: Festuca ovina | D17: cool season grass | E17: 3.1 | F17: Introduced | G17: bunch | H17: 1 | I17: 5.0-6.0 | J17: 530320 | K17: EXDR-MWD | L17: No | M17: Yes | N17: Low | O17: High | P17: 12.17447199
A18: switchgrass | B18: Panicum virgatum | C18: shelter | D18: warm season grass | E18: 8 | F18: native | G18: bunch | H18: 4-6 | I18: 4.5-8 | J18: 260000 | L18: mod | M18: No | N18: Mod | O18: Mod | P18: 5.968778696
A19: Little Bluestem | B19: Schizachyrium scoparium | C19: NY ecotype | D19: warm season grass | E19: 24 | F19: Native | G19: bunch | H19: 3 | I19: 5.5-7.5 | J19: 240670 | K19: EXDR-MWD | L19: No | M19: No | N19: Low | O19: High | P19: 5.525022957
A20: indiangrass | B20: Sorgastrum nutans | D20: warm season grass | E20: 28 | F20: native | G20: bunch | H20: 4-6 | I20: >5.5 | J20: 175000 | L20: mod | M20: No | N20: low | O20: mod | P20: 4.017447199
A21: praire dropseed | B21: Sporobolus heterolepis | D21: grass | E21: 160 | F21: Native | G21: bunch | H21: 3 | I21: 2-3 | J21: 1200000 | L21: No | M21: intermediate | N21: high | O21: high | P21: 27.54820937
A22: purple top | B22: Tridens flavus | D22: warm season grass | E22: 12 | F22: Native | G22: bunch | H22: 2.5 | I22: 4.5-6.5 | J22: 465000 | K22: E-MW | L22: no | M22: No | N22: none | O22: High | P22: 10.67493113
A23: eastern gamagrass | B23: Tripsacum dactyloides | D23: warm season grass | E23: 22 | F23: native | G23: bunch

Sheet Sheet1 (hidden)
A1: Scientific name | B1: Common name | C1: A/P | D1: Native range | E1: poll plant | F1: bloom time | G1: flower color | H1: ht | I1: Soil moisture | J1: sunlight needs | K1: wetland indicator | L1: growth rate | M1: seeds/lb | N1: Cost (lb) ($) | O1: drainage | P1: other | Q1: SOURCES | R1: other
A2: Achillea millefolium | B2: common yarrow | D2: 58,63,59,67,69,70,82,83 | E2: B | F2: mid | G2: white | H2: 2-3 | J2: sun-part | M2: 3000000 | Q2: SS,JF | R2: small native bees
A3: Acornus americanus | B3: sweetflag | E3: B | F3: early, mid | G3: yellow | H3: 3-4 | I3: moist, wet | J3: sun | K3: OBL | L3: rapid | Q3: RB,EC,NC,ANP,EVT | R3: deer resistant | S3: swamps, bogs
A4: Acorus calamus | B4: calamus | D4: 58 | E4: B | F4: early | G4: green | H4: 1-4 | I4: wet | J4: sun-part | K4: OBL | L4: mod | M4: 105600 | Q4: PMN,AG,SS,WSC,JF | R4: naturalized
A5: Agalinis purpurea | B5: purple false foxglove | C5: A | D5: NY,NH,MA,RI,CT,NJ,PA | E5: B | F5: early, mid, late | G5: purple | H5: 1-2 | I5: moist, wet | K5: FACW- | M5: 12480000 | Q5: JF | R5: high bee preference
A6: Agastache foeniculum | B6: lavender hysoop | C6: P | D6: NY,PA,NH,CT | E6: B | F6: mid, late | G6: blue-violet | H6: 3-5 | I6: dry, medium | J6: sun-part | K6: FACU | M6: 1440000 | Q6: SS,JF,MW,RB,NC | R6: honey bee, bumble bee (N) | S6: prolific seed producer
A7: Agastache nepetoides | B7: yellow giant hyssop | C7: P | D7: 70 | E7: B | F7: mid, late | G7: yellow | H7: 3-8 | I7: dry, medium | J7: sun-part | K7: UPL | M7: 1480000 | Q7: PMN,AG, MW
A8: Amorpha canescens | B8: leadplant | C8: P | D8: MI | E8: B | F8: early, mid | G8: purple | H8: 2-3 | I8: dry, medium | J8: sun-part | K8: UPL | M8: 256000 | Q8: SS,JF | R8: legume | S8: silver spotted skipper
A9: Amorpha fruticosa | B9: desert false indigo | C9: P | D9: 58,63,67,70,82 | E9: B | F9: early-mid | G9: purple | H9: 1-2 | J9: sun | K9: FACW | M9: 272000; 59200 | Q9: E,PMN,JF,RB | R9: legume | T9: 1-10% in a riparian mix
A10: Amsonia tabernaemontana | B10: common bluestar | C10: P | E10: B | F10: early | G10: blue | H10: 2-4 | I10: moist, wet | J10: sun-part | Q10: AGN,ET,MW,RB,EF | R10: exotic looking flowers
A11: Angelica atropurpurea | B11: purplestem angelica | D11: 58 | E11: B | F11: mid | G11: white | H11: 1-2 | I11: dry, medium | J11: sun | K11: UPL | M11: 86400 | Q11: PMN,AG,ET,SS,JF | R11: host for American painted lady caterpillar
A12: Aquilegia canadensis | B12: red columbine | C12: P | D12: 58,59,67,69,70,82,83 | E12: B | F12: early | G12: red | H12: 1-2 | I12: medium, wet | J12: sun-part | K12: FAC | M12: 400000 | Q12: ED,ANP,BH,ET,CNN,SS,WSC,JF,MW,EC,FC,NC | R12: deer resistant, native bees, humming birds | S12: Columbine Duskywing larvae food | T12: could be difficult to grow from seed
A13: Asclepias purpurascens | B13: purple milkweed | D13: 58 | E13: B | F13: mid | G13: purple | H13: 2 -3 ft | J13: sun-part | K13: FACU | M13: 72000 | Q13: PMN,MW,RB,EF,FC | R13: Attracts butterflies, hummingbirds | S13: good substitute for sommon milkweed
A14: Asclepias verticillata | B14: whorled milkweed | D14: 70 | E14: B | F14: mid | G14: white | H14: 1-2 | J14: sun-part | K14: UPL | M14: 176000 | Q14: PMN,AG,ED,SS,JF,MW,NC
A15: Baptisia alba | B15: white wild indigo | D15: 63,67 | E15: B | F15: early | G15: white/yellow | H15: 2-3 | J15: sun-part | Q15: SS | R15: larval food for wild indigo duskywing | S15: easy and can adapt well
A16: Bidens cernua | B16: nodding beggartick | C16: A | D16: 58,59,67,69,70,82,83 | E16: B | F16: mid, late | G16: yellow | H16: 2-3 | J16: sun-part | K16: OBL | M16: 130000 | Q16: JF | R16: 2-15% in a mix | S16: reseeding in disturbes sutes
A17: Blephilia ciliata | B17: downy pagoda-plant | D17: 58 | E17: B | F17: mid | G17: pink | H17: 2 | J17: sun-part | M17: 416000 | Q17: PMN,AG,ED
A18: Caltha palustris | B18: yellow marsh marigold | D18: 58,59,67,69,70,82 | E18: B | F18: early | G18: yellow | H18: 1-2 | J18: sun-part | K18: OBL | L18: slow | M18: 12800000 | Q18: ANP,ET,EG,NE,JF,WSC,MW,RB,FC,NC | R18: .5-5% in a mix
A19: Campanula americana | B19: American bellflower | E19: B | F19: early, mid, late | G19: blue | H19: 2-6 | J19: sun-part | M19: 14400000 | Q19: ED,SS,JF | R19: very small seed
A20: Campanula rotundifolia | B20: bluebell bellflower | D20: 58,67,82,83 | E20: B | F20: mid, late | G20: blue-violet | H20: 1-2 | J20: sun-part | M20: 116800 | Q20: ED,ET,MW,RB,FC
A21: Ceanothus americanus | B21: New Jersey tea | D21: 58 | E21: B | F21: early | G21: blueish-white | H21: 3-4 | J21: sun-shade | K21: UPL | M21: 96000 | Q21: E,PMN,PN,AG,ANP,SS,JF | T21: 1-5% in a woodland mix
A22: Celastrus scandens | B22: American bittersweet | D22: 58,59,67,69,70,82,83 | E22: B | F22: early | G22: white | H22: 600" | J22: sun-part | K22: FACU | Q22: PMN,ANP,RB
A23: Cephalanthus occidentalis | B23: common buttonbush | D23: 58,63,59,67,69,70,82,83 | E23: B | F23: early, mid | G23: white | H23: 6-15 | J23: sun-shade | K23: OBL | L23: mod | Q23: E,PMN,ED,ANP,E,NE,WSC,MW,RB | R23: nectar source for butterflies | T23: 1-10% in a wetland mix
A24: Chelone lyonii | B24: pink turtlehead | D24: 58 | E24: B | F24: mid, late | G24: pink | H24: 1 - 3 ft | J24: Sun/part shade | K24: OBL | Q24: WFN,AGN,ED,ET,RB,EF,NC | R24: Late fall color | S24: tighlt clumping habit
A25: Cimicifuga racemosa | B25: black bugbane (cohosh) | C25: P | D25: 58 | E25: B | F25: early, mid | G25: white | H25: 3-6 | J25: sun-part | M25: 200000 | Q25: E,PMN,AGN,ED,ANP,ET,FC | R25: blloms earlier than the others | S25: 1-5% in a mix
A26: Conoclinium coelestinum | B26: blue mistflower | D26: 70 | E26: B | F26: mid, late | G26: purple | H26: 1-3 | J26: sun-part | Q26: ED,ANP,NE,CNN
A27: Coreopsis tripteris | B27: tall tickseed | C27: P | D27: 70 | E27: B | F27: mid, late | G27: yellow | H27: 3-6 | J27: sun-part | K27: FAC | M27: 83200 | Q27: E,PMN,AG,ED,WSC,MW,RB,ET.SS,JF | R27: prolific seeder | S27: .5-5% in a mix | T27: wood margins and birder planting
A28: Cosmos bipinnatus | B28: cosmos | C28: A | D28: WV | F28: mid, late | G28: pink/white | H28: 2-4 | M28: 1500000, 5600000
A29: Echinacea pallida | B29: pale purple coneflower | D29: 59,67 | E29: B | F29: mid | G29: purple | H29: 2-4 | J29: sun | K29: UPL | M29: 768000 | Q29: ED,BH,ET,SS,JF | R29: honey beesm native bees (n); goldfinches | T29: 5-15% in a mix
A30: Eupatorium coelestinum | B30: mistflower | C30: P | E30: B | F30: mid, late | G30: purple | H30: 2-3 | J30: sun-shade | K30: FAC | Q30: E,ET,JF,ED,NC | R30: Great late season butterfly plant | S30: will spread | T30: .5-2% in a mix
A31: Eupatorium purpureum | B31: sweetscented joepyeweed | D31: 58 | E31: B | F31: mid, late | G31: pink-purple | H31: 2-6 | J31: sun-shade | K31: FAC | L31: slow | Q31: E,PMN,PN,AG,OPN,WFN,AGN,ED,ANP,SS,JF,WSC,MW,RB,FC | R31: butterflies and other insects | S31: wood borders | T31: .5-5% in a mix
A32: Gaillardia aristata | B32: blanket flower | D32: WV | E32: B | F32: early, mid | G32: yellow/red | H32: 1-2 | J32: sun | M32: 76800 | Q32: PT,NC | R32: honey bees, native bees (n/p) | S32: east from seed | T32: 5-15% in a mix
A33: Gentiana clausa | B33: bottle gentian | D33: 70 | E33: B | F33: late | G33: blue-violet | H33: 1-2 | J33: part sun | K33: OBL | M33: 76800 | Q33: ED,E,ET,CNN,NE,MW,FC | R33: bumble bees | T33: .5-2% in amix
A34: Geranium maculatum | B34: spotted geranium | D34: 58 | E34: B | F34: early, mid | G34: pink/purple | H34: 1-2 | J34: sun-part | M34: 224000 | Q34: E,AG,WFN,AM,ED,ET,SS,JF,RB,FC,NC
A35: Helianthus divaricatus | B35: woodland sunflower | D35: 58 | E35: B | F35: mid, late | G35: yellow | H35: 6-10 | J35: sun-part | K35: UPL | M35: 33600 | Q35: E,PMN,ED,MW,RB,NC | S35: aggressive spreader
A36: Helianthus occidentalis | B36: fewleaf sunflower | D36: 69 | E36: B | F36: mid, late | G36: yellow | H36: 2-4 | K36: FACU- | Q36: E,PMN,AG,JF
A37: Hibiscus moscheutos | B37: crimsoneyed rosemallow | C37: P | D37: 70 | E37: B | F37: mid, late | G37: pink/white | H37: 4-7 | J37: sun-part | K37: OBL | L37: slow | M37: 160000 | Q37: ,E,ANP,BH,ET,CNN,NE,JF,WSC,EVT,MW,RB,FC,NC | R37: humingbirds | S37: excellent plant for wetland mitigation
A38: Iris virginica | B38: Virginia iris | D38: 70 | E38: B | F38: early | G38: violet | H38: 2-3 | J38: sun-part | K38: OBL | L38: slow | M38: 176000 | Q38: E,AG,SS,JF,EVT,WSC,NC
A39: Lespedeza hirta | B39: hairy lespedeza | D39: 58 | E39: B | H39: 1-3 | J39: sun | Q39: E,ET | R39: birds and butterflies
A40: Lespedeza virginica | B40: slender lespedeza | D40: 70 | E40: B | F40: mid | G40: purple | H40: 2 | K40: UPL | Q40: E,PMN,CNN | R40: legume ws, bunch
A41: Liatris pycnostachya | B41: prairie blazing star | E41: B | F41: mid, late | G41: pink-purple | H41: 5-6 | J41: sun-part | K41: FACU | L41: slow | M41: 14400000 | Q41: SS,JF,WSC | R41: honey bees, bumble bees (n/p) | S41: border or meadow plant, clump forming | T41: .5-10% in a mix
A42: Liatris squarrulosa | B42: Appalachian blazing star | D42: 69 | E42: B | Q42: E
A43: Lobelia puberula | B43: downy lobelia | D43: 70 | E43: B | F43: mid, late | G43: purple | H43: 1-3 | K43: FACW- | Q43: E,CNN | R43: moist sandy soils, old fields, gravel pits | T43: .5-2% in a mix
A44: Lobelia spicata | B44: palespike lobelia | D44: 58 | E44: B | F44: early, mid | G44: purple | H44: 2-3 | J44: sun-part shade | K44: FAC | Q44: PMN,AG,ET,JF | R44: humming birds
A45: Monarda didyma | B45: scarlet beebalm | C45: P | D45: 58 | E45: B | F45: mid | G45: red | H45: 2-4' | J45: sun-part | K45: FAC | L45: mod | M45: 1440000 | Q45: AGN,ET,WSC,RB,FC,NC | R45: Attracts hummingbirds and great nectar source for butterflies | S45: easy to grow
A46: Penstemon canescens | B46: eastern gray beardtongue | D46: 70 | E46: B | F46: early, mid | G46: purple | H46: 1-2 | J46: sun-part | M46: 176000 | Q46: E,EG | R46: early season color | S46: cliffs, woods, shale outcrops | T46: .5-2% in a mix
A47: Penstemon clandestium | B47: Appalachian beard tongue | E47: B | M47: 6048000 | Q47: E
A48: Penstemon laevigatus | B48: eastern smooth beardtongue | D48: 70 | E48: B | F48: early, mid | G48: purple/white | H48: 2-4 | K48: FACU | M48: 496000 | Q48: E,JF | R48: meadows woods roadsides | T48: .5-5% in a mix
A49: Physostegia virginiana | B49: obedient plant | D49: 58,59,67,69,70,83 | E49: B | F49: mid, late | G49: pink/white | H49: 2 - 4ft | J49: Sun/part shade | K49: FACW- | L49: rapid | M49: 240000 | Q49: E,PMN,AG,AM.ED.BH,ET,JF,MW,EF,FC,NC | R49: deer resistant, Attracts fall migrating hummingbirds | S49: vigourous spreader | T49: 1-10% in a mix
A50: Pycnanthemum muticum | B50: clustered mountainmint | D50: 58 | E50: B | F50: mid | G50: white | H50: 1-3 | J50: sun-part shade | K50: FACW | M50: 536000 | Q50: E,ED,BH,JF,MW,NC | R50: deer resistant | S50: excellent nectar plants | T50: 1-10% in a mix
A51: Pycnanthemum tenuifolium | B51: narrowleaf mountainmint | D51: 58 | E51: B | F51: mid | G51: white | H51: 1-3 | J51: sun-part | K51: FAC | M51: 480000 | Q51: PMN,BH,ET,CNN,MW | R51: imporatn bumble bee plant, deer resistant
A52: Rudbeckia fulgida | B52: orange coneflower | D52: 70 | E52: B | F52: mid, late | G52: yellow | H52: 2 - 4 ft | J52: sun | K52: FAC | M52: 1440000 | Q52: E,PMN,PN,AGN,ED,ANP,ET,CNN,EG,JF,RB,EF,NC | R52: Drought tolerant, birds eat seeds | S52: slowly spreading | T52: 5-15% in a mix
A53: Rudbeckia laciniata | B53: cutleaf coneflower | D53: 58,63,59,67,69,70 | E53: B | F53: mid | G53: yellow | H53: 3-6 | J53: sun-part | K53: FACW | L53: slow | M53: 1344000 | Q53: PMN,PN,AG,AGN,ANP,BH,ET,NE,JF,WSC,SS,MW,RB,NC | R53: honey bees, native bees (n/p), goldfinches, deer resistanat | T53: 1-10% in a mix
A54: Rudbeckia triloba | B54: browneyed Susan | D54: 59,67,69,70, | E54: B | F54: mid, late | G54: yellow | H54: 1-3 | J54: sun-part | K54: FACU | M54: 224000 | Q54: BH,SS,JF,MW,RB,EF,NC | R54: native bees, bumble bees (n), goldfinches | T54: 1-10% in a mix
A55: Sisyrinchium angustifolium | B55: narrowleaf blue-eyed grass | D55: 58,63,59,67,69,70,82 | E55: B | F55: early, mid | G55: blue | H55: 1 | J55: sun-part | K55: FACU | M55: 2000000 | Q55: E,AGN,ANP,ET,JF,MW,EC,FC,NC
A56: Solidago bicolor | B56: white goldenrod | D56: 58 | E56: B | F56: late | G56: white | H56: 2-3 | J56: sun-part | M56: 816000 | Q56: E,PMN,NE | R56: grows on infertile soils | T56: 1-15% in a mix
A57: Solidago flexicaulis | B57: zigzag goldenrod | D57: 58 | E57: B | F57: late | G57: yellow | H57: 1-4 | J57: sun-shade | K57: FACU | M57: 176000 | Q57: PMN,AG,ED,JF,MW,RB,FC,NC | R57: moderate spreader | S57: aggressive | T57: 1-5% in a mix
A58: Solidago rugosa | B58: wrinkleleaf goldenrod | D58: 58 | E58: B | F58: late | G58: yellow | H58: 2-6 | J58: sun-part | K58: FAC | L58: mod | Q58: E,ANP,JF,WSC | R58: "fireworks" will not spread | T58: .5-15% in a mix
A59: Sporobolus heterolepis | B59: prairie dropseed | D59: 67 | E59: B | F59: mid | G59: green | H59: 2 - 3 ft | J59: Sun | K59: UPL | M59: 14000/oz | Q59: E,PMN,PN,AG,OPN,ED,ANP,SS,JF,MW,RB,NC | R59: Fine textured. valued by birds, very attractive ornamental
A60: Symphyotrichum cordifolium | B60: common blue wood aster | C60: P | D60: 70 | E60: B | F60: mid, late | G60: blue-purple | H60: 2-3' | J60: sun-shade | K60: UPL | M60: 2000000 | Q60: E,ET,MW,FC | R60: abundant seed producer,in woodland clearings | S60: 1-10% in a mix
A61: Symphyotrichum lanceolatum | B61: white panicle aster | D61: 58 | E61: B | F61: mid, late | G61: white | H61: 2-5 | J61: sun-part | K61: FACW | L61: mid | M61: 141000/oz | Q61: ET,WSC | R61: 1-5% in a mix
A62: Symphyotrichum oblongifolium | B62: aromatic aster | D62: 70 | E62: B | F62: late | G62: violet | H62: 2-3 | J62: sun | K62: UPL | M62: 51000/oz | Q62: E,EG,MW | R62: 1-5% in a mix
A63: Symphyotrichum puniceum | B63: purplestem aster | D63: 58 | E63: B | F63: mid, late | G63: violet | H63: 3-6 | J63: sun | K63: OBL | L63: slow | M63: 76000/oz | Q63: AG,ANP,BH,WSC,FC | R63: nectar for butterflies
A64: Zizia aptera | B64: meadow zizia | D64: 69 | E64: B | F64: early, mid | G64: yellow | H64: 1-3 | J64: sun-part | K64: FAC+ | M64: 176000 | Q64: ED,JF,MW | R64: endangered inCT, great for warerfowl | S64: larval food of Black Swallowtail and Ozark butterflies | T64: east from seed
